{"text_format":"1","workbook":"xlsx","n_sheets":4,"sheets":["FY2019 Est Tons","APConly","SearchResults","Output"],"not_rendered":{"charts":0,"images":2,"macros":1,"external_links":0,"defined_names":1,"comments":0,"pivot_tables":0},"unopened":[],"bounds":{"document_bytes":16777216,"sheet_cells":100000,"rows_first":2000,"rows_last":500,"rows_between":2000,"halvings":0,"cell_chars":16384,"cell_head_chars":4096},"cells_cut":0,"cells_raw":0,"read":"whole","date_system":"1900"}

{"sheet":"FY2019 Est Tons","index":0,"n_rows":220,"n_cols":105,"rows_kept":220,"cut":false,"hidden":false,"merged":[]}
["Facility ID","SITE NAME","Non-EGU or EGU?","PM ALW","PM ACT","SO2 ALW","SO2 ACT","VOC ALW","VOC ACT","NOX ALW","NOX ACT","HAP NOstd ALW","HAP NOstd ACT","HAP std ALW","HAP std ACT","NSPS ALW","NSPS ACT","TOTAL ALW","TOTAL ACT","ALW $/ton","ACT $/ton","$/ton fee","$/ton fee + base fee","total fee",null,"Billing Mode","Combined tons"]
["01-0009","Tennessee Valley Authority  - Bull Run Fossil Plant","EGU",0,70,0,376,0,26,0,859,0,36,0,0,0,0,0,1367,46.819999694824219,74.910003662109375,102401.97,106401.97,106401.97,null,"Actuals",{"$f":"SUM(R2:S2)","v":1367},null,null,null,null,null,null,null,null,null,null,null,null,null,null,null,null,null,null,null,null,null,null,null,null,null,null,null,null,null,null,null,null,null,null,null,null,null,null,null,null,null,null,null,null,null,null,null,null,null,null,null,null,null,null,null,null,null,null,null,null,null,null,null,null,null,null,null,null,null,null,null,null,1,"82-0003",726206.31,null,"Mean",{"$f":"AVERAGE(CX2:CX216)","v":33183.533389906974}]
["01-0020","US Department of Energy - Oak Ridge Y-12 National Security Complex","Non-EGU",300.60000000000002,3.4,0,0.4,77.5,16.399999999999999,220.1,15.4,38,0,0,0,14.5,0,650.70000000000005,35.6,33.439998626708984,53.5,23664.007999999998,27664.007999999998,27664.007999999998,null,"Mixed",686.30000000000007,null,null,null,null,null,null,null,null,null,null,null,null,null,null,null,null,null,null,null,null,null,null,null,null,null,null,null,null,null,null,null,null,null,null,null,null,null,null,null,null,null,null,null,null,null,null,null,null,null,null,null,null,null,null,null,null,null,null,null,null,null,null,null,null,null,null,null,null,null,null,null,null,2,"81-0011",615697.52,null,"Median",{"$f":"MEDIAN(CX2:CX216)","v":14679.039999999999}]
["01-0114","The Carlstar Group LLC","Non-EGU",132.19999999999999,0,0,0.1,0,70.599999999999994,0,14.7,0,0,0,0,0,0,132.19999999999999,85.399999999999991,33.439998626708984,53.5,8989.6679999999978,12989.667999999998,12989.667999999998,null,"Mixed",217.59999999999997,null,null,null,null,null,null,null,null,null,null,null,null,null,null,null,null,null,null,null,null,null,null,null,null,null,null,null,null,null,null,null,null,null,null,null,null,null,null,null,null,null,null,null,null,null,null,null,null,null,null,null,null,null,null,null,null,null,null,null,null,null,null,null,null,null,null,null,null,null,null,null,null,3,"73-0013",360664.04599999997,null,"Mode",{"$f":"MODE(CX2:CX216)","v":7500}]
["01-0170","Chestnut Ridge Landfill and Recycling Center","Non-EGU",0,9,0,15.8,0,22,0,49.1,0,0,0,0,0,0,0,95.9,33.439998626708984,53.5,5130.6500000000005,9130.6500000000015,9130.6500000000015,null,"Actuals",95.9,null,null,null,null,null,null,null,null,null,null,null,null,null,null,null,null,null,null,null,null,null,null,null,null,null,null,null,null,null,null,null,null,null,null,null,null,null,null,null,null,null,null,null,null,null,null,null,null,null,null,null,null,null,null,null,null,null,null,null,null,null,null,null,null,null,null,null,null,null,null,null,null,4,"83-0025",265102.95550000004,null,"StdDev",{"$f":"STDEV(CX2:CX216)","v":76546.727839411906}]
["02-0081","Bemis Packaging, Inc.","Non-EGU",0,0,0,0,0,44.1,0,3.3,0,0,0,0,0,0,0,47.4,33.439998626708984,53.5,2535.9,6535.9,7500,null,"Actuals",47.4,null,null,null,null,null,null,null,null,null,null,null,null,null,null,null,null,null,null,null,null,null,null,null,null,null,null,null,null,null,null,null,null,null,null,null,null,null,null,null,null,null,null,null,null,null,null,null,null,null,null,null,null,null,null,null,null,null,null,null,null,null,null,null,null,null,null,null,null,null,null,null,null,5,"54-0012",256053.11999999997]
["03-0045","West Camden Sanitary Landfill","Non-EGU",0,8.3000000000000007,0,29.3,0,18.600000000000001,0,55.8,0,0,0,0,0,0,0,112,33.439998626708984,53.5,5992,9992,9992,null,"Actuals",112,null,null,null,null,null,null,null,null,null,null,null,null,null,null,null,null,null,null,null,null,null,null,null,null,null,null,null,null,null,null,null,null,null,null,null,null,null,null,null,null,null,null,null,null,null,null,null,null,null,null,null,null,null,null,null,null,null,null,null,null,null,null,null,null,null,null,null,null,null,null,null,null,6,"36-0002",243350.84599999999]
["05-0008","Arconic Inc. (formerly Alcoa, Inc. - South Plant)","Non-EGU",0,131.27000000000001,0,6.57,0,227.91,0,174.62,0,82.28,0,0,0,0,0,622.65,33.439998626708984,53.5,33311.775000000001,37311.775000000001,37311.775000000001,null,"Actuals",622.65,null,null,null,null,null,null,null,null,null,null,null,null,null,null,null,null,null,null,null,null,null,null,null,null,null,null,null,null,null,null,null,null,null,null,null,null,null,null,null,null,null,null,null,null,null,null,null,null,null,null,null,null,null,null,null,null,null,null,null,null,null,null,null,null,null,null,null,null,null,null,null,null,7,"64-0013",211215.58]
["05-0011","Alcoa, Maryville, Blount County Landfill","Non-EGU",0,18.3,0,0,0,5,0,1.1000000000000001,0,0,0,0.5,0,0,0,24.900000000000002,33.439998626708984,53.5,1332.15,5332.15,7500,null,"Actuals",24.900000000000002,null,null,null,null,null,null,null,null,null,null,null,null,null,null,null,null,null,null,null,null,null,null,null,null,null,null,null,null,null,null,null,null,null,null,null,null,null,null,null,null,null,null,null,null,null,null,null,null,null,null,null,null,null,null,null,null,null,null,null,null,null,null,null,null,null,null,null,null,null,null,null,null,8,"37-0026",171674.57344000001]
["05-0176","Flex-N-Gate Rockford, Inc.","Non-EGU",38.6,0,0,0,316.8,0,0,0,0,0,0,0,0,0,355.40000000000003,0,33.439998626708984,53.5,11884.576000000001,15884.576000000001,15884.576000000001,null,"Allowables",355.40000000000003,null,null,null,null,null,null,null,null,null,null,null,null,null,null,null,null,null,null,null,null,null,null,null,null,null,null,null,null,null,null,null,null,null,null,null,null,null,null,null,null,null,null,null,null,null,null,null,null,null,null,null,null,null,null,null,null,null,null,null,null,null,null,null,null,null,null,null,null,null,null,null,null,9,"37-0028",158374.315]
["05-0183","Denso Manufacturing Tennessee, Inc.","Non-EGU",15.3,0,0,0,112,0,0,0,24.9,0,0.2,0,24.9,0,177.29999999999998,0,33.439998626708984,53.5,5928.9119999999994,9928.9120000000003,9928.9120000000003,null,"Allowables",177.29999999999998,null,null,null,null,null,null,null,null,null,null,null,null,null,null,null,null,null,null,null,null,null,null,null,null,null,null,null,null,null,null,null,null,null,null,null,null,null,null,null,null,null,null,null,null,null,null,null,null,null,null,null,null,null,null,null,null,null,null,null,null,null,null,null,null,null,null,null,null,null,null,null,null,10,"43-0007",132781.9081]
["05-0199","Skier's Choice Inc","Non-EGU",37.700000000000003,0,0,0,245,0,0,0,0,0,0,0,0,0,282.7,0,33.439998626708984,53.5,9453.4879999999994,13453.487999999999,13453.487999999999,null,"Allowables",282.7,null,null,null,null,null,null,null,null,null,null,null,null,null,null,null,null,null,null,null,null,null,null,null,null,null,null,null,null,null,null,null,null,null,null,null,null,null,null,null,null,null,null,null,null,null,null,null,null,null,null,null,null,null,null,null,null,null,null,null,null,null,null,null,null,null,null,null,null,null,null,null,null,11,"01-0009",129367.56999999999]
["06-0014","Olin Corporation","Non-EGU",10.199999999999999,0,77.7,0,0,0,66.8,0,0,0,9.8000000000000007,0,0,0,164.5,0,33.439998626708984,53.5,5500.8799999999992,9500.8799999999992,9500.8799999999992,null,"Allowables",164.5,null,null,null,null,null,null,null,null,null,null,null,null,null,null,null,null,null,null,null,null,null,null,null,null,null,null,null,null,null,null,null,null,null,null,null,null,null,null,null,null,null,null,null,null,null,null,null,null,null,null,null,null,null,null,null,null,null,null,null,null,null,null,null,null,null,null,null,null,null,null,null,null,12,"75-0155",119217.46459999999]
["06-0085","Duracell Manufacturing, Inc.","Non-EGU",65.599999999999994,0,0,0,77.400000000000006,0,0,0,0,0,0,0,0,0,143,0,33.439998626708984,53.5,4781.92,8781.92,8781.92,null,"Allowables",143,null,null,null,null,null,null,null,null,null,null,null,null,null,null,null,null,null,null,null,null,null,null,null,null,null,null,null,null,null,null,null,null,null,null,null,null,null,null,null,null,null,null,null,null,null,null,null,null,null,null,null,null,null,null,null,null,null,null,null,null,null,null,null,null,null,null,null,null,null,null,null,null,13,"41-0002",94528.269000000015]
["06-0205","Bradley Co Landfill","Non-EGU",0,0,0,0,0,34.4,0,0,0,0,0,0,0,0,0,34.4,33.439998626708984,53.5,1840.3999999999999,5840.4,7500,null,"Actuals",34.4,null,null,null,null,null,null,null,null,null,null,null,null,null,null,null,null,null,null,null,null,null,null,null,null,null,null,null,null,null,null,null,null,null,null,null,null,null,null,null,null,null,null,null,null,null,null,null,null,null,null,null,null,null,null,null,null,null,null,null,null,null,null,null,null,null,null,null,null,null,null,null,null,14,"53-0003",79214.67]
["06-0215","Arch Chemicals Inc","Non-EGU",234.8,0,0.2,0,1.5,0,39.5,0,40,0,0,0,40,0,356,0,33.439998626708984,53.5,11904.64,15904.64,15904.64,null,"Allowables",356,null,null,null,null,null,null,null,null,null,null,null,null,null,null,null,null,null,null,null,null,null,null,null,null,null,null,null,null,null,null,null,null,null,null,null,null,null,null,null,null,null,null,null,null,null,null,null,null,null,null,null,null,null,null,null,null,null,null,null,null,null,null,null,null,null,null,null,null,null,null,null,null,15,"83-0008",74617.159599999999]
["09-0012","GrÃ¤nges Americas Inc.","Non-EGU",0,9.8000000000000007,0,0.4,0,665.4,0,58.2,0,3.9,0,0,0,0,0,737.7,33.439998626708984,53.5,39466.950000000004,43466.950000000004,43466.950000000004,null,"Actuals",737.7,null,null,null,null,null,null,null,null,null,null,null,null,null,null,null,null,null,null,null,null,null,null,null,null,null,null,null,null,null,null,null,null,null,null,null,null,null,null,null,null,null,null,null,null,null,null,null,null,null,null,null,null,null,null,null,null,null,null,null,null,null,null,null,null,null,null,null,null,null,null,null,null,16,"82-0022",74108.3514]
["11-0023","State Industries Incorporated","Non-EGU",81.5,1,30,0,0,231.4,46.4,0,0,0,0,0,0,0,157.9,232.4,33.439998626708984,53.5,17713.576000000001,21713.576000000001,21713.576000000001,null,"Mixed",390.3,null,null,null,null,null,null,null,null,null,null,null,null,null,null,null,null,null,null,null,null,null,null,null,null,null,null,null,null,null,null,null,null,null,null,null,null,null,null,null,null,null,null,null,null,null,null,null,null,null,null,null,null,null,null,null,null,null,null,null,null,null,null,null,null,null,null,null,null,null,null,null,null,17,"87-0028",70185.327999999994]
["11-0039","Trinity Marine Products, Inc. - No. 296","Non-EGU",28.6,0,0,0,120,0,0,0,0,0,0,0,0,0,148.6,0,33.439998626708984,53.5,4969.1839999999993,8969.1839999999993,8969.1839999999993,null,"Allowables",148.6,null,null,null,null,null,null,null,null,null,null,null,null,null,null,null,null,null,null,null,null,null,null,null,null,null,null,null,null,null,null,null,null,null,null,null,null,null,null,null,null,null,null,null,null,null,null,null,null,null,null,null,null,null,null,null,null,null,null,null,null,null,null,null,null,null,null,null,null,null,null,null,null,18,"64-0001",58875.436000000009]
["13-0083","SumiRiko Tennessee, Inc.","Non-EGU",0,1.1000000000000001,0,0,0,208.1,0,0,0,0,0,0,0,0,0,209.2,33.439998626708984,53.5,11192.199999999999,15192.199999999999,15192.199999999999,null,"Actuals",209.2,null,null,null,null,null,null,null,null,null,null,null,null,null,null,null,null,null,null,null,null,null,null,null,null,null,null,null,null,null,null,null,null,null,null,null,null,null,null,null,null,null,null,null,null,null,null,null,null,null,null,null,null,null,null,null,null,null,null,null,null,null,null,null,null,null,null,null,null,null,null,null,null,19,"60-0011",53563.6]
["14-0022","Honest Abe Log Homes, Inc.","Non-EGU",191.9,0,21.2,0,5.7,0,113,0,0,0,0,0,0,0,331.79999999999995,0,33.439998626708984,53.5,11095.391999999998,15095.391999999998,15095.391999999998,null,"Allowables",331.79999999999995,null,null,null,null,null,null,null,null,null,null,null,null,null,null,null,null,null,null,null,null,null,null,null,null,null,null,null,null,null,null,null,null,null,null,null,null,null,null,null,null,null,null,null,null,null,null,null,null,null,null,null,null,null,null,null,null,null,null,null,null,null,null,null,null,null,null,null,null,null,null,null,null,20,"43-0010",52492.208000000006]
["15-0005","Si Group Inc.","Non-EGU",11.9,0,28.2,0,35,0,61.2,0,0,0,0,0,0,0,136.30000000000001,0,33.439998626708984,53.5,4557.8720000000003,8557.8719999999994,8557.8719999999994,null,"Allowables",136.30000000000001,null,null,null,null,null,null,null,null,null,null,null,null,null,null,null,null,null,null,null,null,null,null,null,null,null,null,null,null,null,null,null,null,null,null,null,null,null,null,null,null,null,null,null,null,null,null,null,null,null,null,null,null,null,null,null,null,null,null,null,null,null,null,null,null,null,null,null,null,null,null,null,null,21,"09-0012",52326.727000000006]
["15-0009","Commercial Furniture Group","Non-EGU",116,0,0,0,107,0,0,0,0,0,0,0,0,0,223,0,33.439998626708984,53.5,7457.12,11457.119999999999,11457.119999999999,null,"Allowables",223,null,null,null,null,null,null,null,null,null,null,null,null,null,null,null,null,null,null,null,null,null,null,null,null,null,null,null,null,null,null,null,null,null,null,null,null,null,null,null,null,null,null,null,null,null,null,null,null,null,null,null,null,null,null,null,null,null,null,null,null,null,null,null,null,null,null,null,null,null,null,null,null,22,"54-0174",51744.207999999991]
["15-0020","Sonoco - Newport","Non-EGU",0,2,0,0.2,0,67.099999999999994,0,26.8,0,0,0,0,0,3,0,99.1,33.439998626708984,53.5,5301.8499999999995,9301.8499999999985,9301.8499999999985,null,"Actuals",99.1,null,null,null,null,null,null,null,null,null,null,null,null,null,null,null,null,null,null,null,null,null,null,null,null,null,null,null,null,null,null,null,null,null,null,null,null,null,null,null,null,null,null,null,null,null,null,null,null,null,null,null,null,null,null,null,null,null,null,null,null,null,null,null,null,null,null,null,null,null,null,null,null,23,"50-0003",48031.263999999996]
["16-0010","Arnold Engineering Development Complex","Non-EGU",0,4.8,0,6.6,0,10.5,0,88,0,0,0,0,0,0,0,109.9,33.439998626708984,53.5,5879.6500000000005,9879.6500000000015,9879.6500000000015,null,"Actuals",109.9,null,null,null,null,null,null,null,null,null,null,null,null,null,null,null,null,null,null,null,null,null,null,null,null,null,null,null,null,null,null,null,null,null,null,null,null,null,null,null,null,null,null,null,null,null,null,null,null,null,null,null,null,null,null,null,null,null,null,null,null,null,null,null,null,null,null,null,null,null,null,null,null,24,"05-0008",44789.801500000001]
["16-0067","Batesville Manufacturing, Inc.","Non-EGU",0,10.199999999999999,0,0,0,244.5,0,0,0,0,0,0,0,0,0,254.7,33.439998626708984,53.5,13626.449999999999,17626.449999999997,17626.449999999997,null,"Actuals",254.7,null,null,null,null,null,null,null,null,null,null,null,null,null,null,null,null,null,null,null,null,null,null,null,null,null,null,null,null,null,null,null,null,null,null,null,null,null,null,null,null,null,null,null,null,null,null,null,null,null,null,null,null,null,null,null,null,null,null,null,null,null,null,null,null,null,null,null,null,null,null,null,null,25,"82-0041",40229.631999999998]
["16-0113","KASAI North America, Inc.","Non-EGU",41,0,0,0,225,0,6,0,0,0,0,0,0,0,272,0,33.439998626708984,53.5,9095.68,13095.68,13095.68,null,"Allowables",272,null,null,null,null,null,null,null,null,null,null,null,null,null,null,null,null,null,null,null,null,null,null,null,null,null,null,null,null,null,null,null,null,null,null,null,null,null,null,null,null,null,null,null,null,null,null,null,null,null,null,null,null,null,null,null,null,null,null,null,null,null,null,null,null,null,null,null,null,null,null,null,null,26,"53-0081",39928.048000000003]
["16-0123","Sonoco Protective Solutions ","Non-EGU",0,0.6,0,0.1,0,45.9,0,4.9000000000000004,0,0,0,0,0,0,0,51.5,33.439998626708984,53.5,2755.25,6755.25,7500,null,"Actuals",51.5,null,null,null,null,null,null,null,null,null,null,null,null,null,null,null,null,null,null,null,null,null,null,null,null,null,null,null,null,null,null,null,null,null,null,null,null,null,null,null,null,null,null,null,null,null,null,null,null,null,null,null,null,null,null,null,null,null,null,null,null,null,null,null,null,null,null,null,null,null,null,null,null,27,"73-0125",39631.408000000003]
["18-0090","Crossville Hardwoods, LLC","Non-EGU",0,111.5,0,1.4,0,7.8,0,27,0,0,0,0,0,0,0,147.69999999999999,33.439998626708984,53.5,7901.95,11901.95,11901.95,null,"Actuals",147.69999999999999,null,null,null,null,null,null,null,null,null,null,null,null,null,null,null,null,null,null,null,null,null,null,null,null,null,null,null,null,null,null,null,null,null,null,null,null,null,null,null,null,null,null,null,null,null,null,null,null,null,null,null,null,null,null,null,null,null,null,null,null,null,null,null,null,null,null,null,null,null,null,null,null,28,"18-0120",39428.704000000005]
["18-0117","Ficosa North America Corporation","Non-EGU",0,0.6,0,0,0,231,0,0,0,0,0,0,0,0,0,231.6,33.439998626708984,53.5,12390.6,16390.599999999999,16390.599999999999,null,"Actuals",231.6,null,null,null,null,null,null,null,null,null,null,null,null,null,null,null,null,null,null,null,null,null,null,null,null,null,null,null,null,null,null,null,null,null,null,null,null,null,null,null,null,null,null,null,null,null,null,null,null,null,null,null,null,null,null,null,null,null,null,null,null,null,null,null,null,null,null,null,null,null,null,null,null,29,"01-0020",38502.764000000003]
["18-0120","StonePeak Ceramics, Inc.","Non-EGU",189.1,0,243.4,0,46.6,0,199.3,0,19.100000000000001,0,0,0,19.100000000000001,0,716.60000000000014,0,33.439998626708984,53.5,23963.104000000003,27963.104000000003,27963.104000000003,null,"Allowables",716.60000000000014,null,null,null,null,null,null,null,null,null,null,null,null,null,null,null,null,null,null,null,null,null,null,null,null,null,null,null,null,null,null,null,null,null,null,null,null,null,null,null,null,null,null,null,null,null,null,null,null,null,null,null,null,null,null,null,null,null,null,null,null,null,null,null,null,null,null,null,null,null,null,null,null,30,"75-0057",35730.591999999997]
["20-0052","Decatur County Municipal Solid Waste Landfill","Non-EGU",0,0,0,0,0,15.6,0,0,0,0,0,0,0,0,0,15.6,33.439998626708984,53.5,834.6,4834.6000000000004,7500,null,"Actuals",15.6,null,null,null,null,null,null,null,null,null,null,null,null,null,null,null,null,null,null,null,null,null,null,null,null,null,null,null,null,null,null,null,null,null,null,null,null,null,null,null,null,null,null,null,null,null,null,null,null,null,null,null,null,null,null,null,null,null,null,null,null,null,null,null,null,null,null,null,null,null,null,null,null,31,"37-0007",34814.559999999998]
["21-0031","Federal-Mogul Motorparts","Non-EGU",228.7,0,17.899999999999999,0,240,0,130.9,0,0,0,0,0,0,0,617.5,0,33.439998626708984,53.5,20649.199999999997,24649.199999999997,24649.199999999997,null,"Allowables",617.5,null,null,null,null,null,null,null,null,null,null,null,null,null,null,null,null,null,null,null,null,null,null,null,null,null,null,null,null,null,null,null,null,null,null,null,null,null,null,null,null,null,null,null,null,null,null,null,null,null,null,null,null,null,null,null,null,null,null,null,null,null,null,null,null,null,null,null,null,null,null,null,null,32,"62-0089",34613.248]
["22-0055","Ebbtide Corp.","Non-EGU",0,0,0,0,0,0,0,0,0,0,0,0,0,0,0,0,33.439998626708984,53.5,0,4000,7500,null,"Mixed",0,null,null,null,null,null,null,null,null,null,null,null,null,null,null,null,null,null,null,null,null,null,null,null,null,null,null,null,null,null,null,null,null,null,null,null,null,null,null,null,null,null,null,null,null,null,null,null,null,null,null,null,null,null,null,null,null,null,null,null,null,null,null,null,null,null,null,null,null,null,null,null,null,33,"21-0031",34529.199999999997]
["22-0072","Nemak USA, Inc.","Non-EGU",0,83.9,0,0.2,0,88.4,0,29.6,0,2.21,0,0,0,0,0,204.31,33.439998626708984,53.5,10930.585000000001,14930.585000000001,14930.585000000001,null,"Actuals",204.31,null,null,null,null,null,null,null,null,null,null,null,null,null,null,null,null,null,null,null,null,null,null,null,null,null,null,null,null,null,null,null,null,null,null,null,null,null,null,null,null,null,null,null,null,null,null,null,null,null,null,null,null,null,null,null,null,null,null,null,null,null,null,null,null,null,null,null,null,null,null,null,null,34,"83-0129",33599.728000000003]
["22-0112","Bridgestone APM","Non-EGU",0,0,0,0,0,99.1,11.7,0.1,0,0,0,0,0,0,11.7,99.199999999999989,33.439998626708984,53.5,5698.4479999999994,9698.4480000000003,9698.4480000000003,null,"Mixed",110.89999999999999,null,null,null,null,null,null,null,null,null,null,null,null,null,null,null,null,null,null,null,null,null,null,null,null,null,null,null,null,null,null,null,null,null,null,null,null,null,null,null,null,null,null,null,null,null,null,null,null,null,null,null,null,null,null,null,null,null,null,null,null,null,null,null,null,null,null,null,null,null,null,null,null,35,"91-0001",32529.932550000001]
["22-0177","Dal-Tile Dickson","Non-EGU",116.2,0,49.4,0,99.7,0,60.4,0,18.2,0,0,0,0,0,343.9,0,33.439998626708984,53.5,11500.015999999998,15500.015999999998,15500.015999999998,null,"Allowables",343.9,null,null,null,null,null,null,null,null,null,null,null,null,null,null,null,null,null,null,null,null,null,null,null,null,null,null,null,null,null,null,null,null,null,null,null,null,null,null,null,null,null,null,null,null,null,null,null,null,null,null,null,null,null,null,null,null,null,null,null,null,null,null,null,null,null,null,null,null,null,null,null,null,36,"54-0167",31765.504000000001]
["23-0092","Trunkline Gas Company- Dyersburg Compressor Station","Non-EGU",0,0.3,0,4.0999999999999996,0,5.6,0,188.8,0,0.2,0,0.2,0,0,0,199.2,33.439998626708984,53.5,10657.199999999999,14657.199999999999,14657.199999999999,null,"Actuals",199.2,null,null,null,null,null,null,null,null,null,null,null,null,null,null,null,null,null,null,null,null,null,null,null,null,null,null,null,null,null,null,null,null,null,null,null,null,null,null,null,null,null,null,null,null,null,null,null,null,null,null,null,null,null,null,null,null,null,null,null,null,null,null,null,null,null,null,null,null,null,null,null,null,37,"63-0135",31750.671999999995]
["23-0120","SRG Global Coatings, Inc.","Non-EGU",103.5,0,0.4,0,230.2,0,4.4000000000000004,0,24.9,0,0,0,24.9,0,388.29999999999995,0,33.439998626708984,53.5,12984.751999999997,16984.751999999997,16984.751999999997,null,"Allowables",388.29999999999995,null,null,null,null,null,null,null,null,null,null,null,null,null,null,null,null,null,null,null,null,null,null,null,null,null,null,null,null,null,null,null,null,null,null,null,null,null,null,null,null,null,null,null,null,null,null,null,null,null,null,null,null,null,null,null,null,null,null,null,null,null,null,null,null,null,null,null,null,null,null,null,null,38,"53-0093",30476.692000000003]
["24-0080","Stabilit America, Inc.","Non-EGU",11.8,0,0,0,50.3,0,9.4,0,0,0,0,0,0,0,71.5,0,33.439998626708984,53.5,2390.96,6390.96,7500,null,"Allowables",71.5,null,null,null,null,null,null,null,null,null,null,null,null,null,null,null,null,null,null,null,null,null,null,null,null,null,null,null,null,null,null,null,null,null,null,null,null,null,null,null,null,null,null,null,null,null,null,null,null,null,null,null,null,null,null,null,null,null,null,null,null,null,null,null,null,null,null,null,null,null,null,null,null,39,"53-0098",30302.079999999998]
["26-0079","Tepro Inc.","Non-EGU",29,0,0,0,187,0,0,0,0,0,0,0,0,0,216,0,33.439998626708984,53.5,7223.0399999999991,11223.039999999999,11223.039999999999,null,"Allowables",216,null,null,null,null,null,null,null,null,null,null,null,null,null,null,null,null,null,null,null,null,null,null,null,null,null,null,null,null,null,null,null,null,null,null,null,null,null,null,null,null,null,null,null,null,null,null,null,null,null,null,null,null,null,null,null,null,null,null,null,null,null,null,null,null,null,null,null,null,null,null,null,null,40,"62-0090",30109.263999999999]
["26-0086","Tennessee Zanini, Inc.","Non-EGU",0,7.8,0,0,0,193.2,0,0,0,0,0,0,0,0,0,201,33.439998626708984,53.5,10753.5,14753.5,14753.5,null,"Actuals",201,null,null,null,null,null,null,null,null,null,null,null,null,null,null,null,null,null,null,null,null,null,null,null,null,null,null,null,null,null,null,null,null,null,null,null,null,null,null,null,null,null,null,null,null,null,null,null,null,null,null,null,null,null,null,null,null,null,null,null,null,null,null,null,null,null,null,null,null,null,null,null,null,41,"63-0123",30104.32]
["26-0131","CJBBB Inc dba Phoenix Boats","Non-EGU",0,0.8,0,0,0,42.3,0,0,0,0,0,0,0,0,0,43.099999999999994,33.439998626708984,53.5,2305.85,6305.85,7500,null,"Actuals",43.099999999999994,null,null,null,null,null,null,null,null,null,null,null,null,null,null,null,null,null,null,null,null,null,null,null,null,null,null,null,null,null,null,null,null,null,null,null,null,null,null,null,null,null,null,null,null,null,null,null,null,null,null,null,null,null,null,null,null,null,null,null,null,null,null,null,null,null,null,null,null,null,null,null,null,42,"83-0014",30090.149000000005]
["27-0100","Ceco Door Products","Non-EGU",93.8,0,0.1,0,230.5,0,19.8,0,0,0,0,0,0,0,344.2,0,33.439998626708984,53.5,11510.047999999999,15510.047999999999,15510.047999999999,null,"Allowables",344.2,null,null,null,null,null,null,null,null,null,null,null,null,null,null,null,null,null,null,null,null,null,null,null,null,null,null,null,null,null,null,null,null,null,null,null,null,null,null,null,null,null,null,null,null,null,null,null,null,null,null,null,null,null,null,null,null,null,null,null,null,null,null,null,null,null,null,null,null,null,null,null,null,43,"57-0035",29001.807999999997]
["28-0025","Magotteaux Incorporated.","Non-EGU",195.8,0,58.5,0,118.2,0,22.4,0,0,0,0,0,0,0,394.9,0,33.439998626708984,53.5,13205.455999999998,17205.455999999998,17205.455999999998,null,"Allowables",394.9,null,null,null,null,null,null,null,null,null,null,null,null,null,null,null,null,null,null,null,null,null,null,null,null,null,null,null,null,null,null,null,null,null,null,null,null,null,null,null,null,null,null,null,null,null,null,null,null,null,null,null,null,null,null,null,null,null,null,null,null,null,null,null,null,null,null,null,null,null,null,null,null,44,"49-0049",28789.215999999997]
["28-0091","SaarGummi Tennessee, LLC","Non-EGU",9.1999999999999993,0,0,0,91.5,0,0,0,0,0,0,0,0,0,100.7,0,33.439998626708984,53.5,3367.4079999999999,7367.4079999999994,7500,null,"Allowables",100.7,null,null,null,null,null,null,null,null,null,null,null,null,null,null,null,null,null,null,null,null,null,null,null,null,null,null,null,null,null,null,null,null,null,null,null,null,null,null,null,null,null,null,null,null,null,null,null,null,null,null,null,null,null,null,null,null,null,null,null,null,null,null,null,null,null,null,null,null,null,null,null,null,45,"95-0093",28769.439999999999]
["30-0001","Imerys Fused Minerals Greeneville, Inc. ","Non-EGU",224.5,0,0.2,0,1.2,0,41.4,0,0,0,0,0,0,0,267.29999999999995,0,33.439998626708984,53.5,8938.511999999997,12938.511999999997,12938.511999999997,null,"Allowables",267.29999999999995,null,null,null,null,null,null,null,null,null,null,null,null,null,null,null,null,null,null,null,null,null,null,null,null,null,null,null,null,null,null,null,null,null,null,null,null,null,null,null,null,null,null,null,null,null,null,null,null,null,null,null,null,null,null,null,null,null,null,null,null,null,null,null,null,null,null,null,null,null,null,null,null,46,"36-0074",28655.727999999999]
["30-0132","Plus Mark, Inc.","Non-EGU",0,0.2,0,0,0,164.5,0,2.5,0,0,0,0,0,0,0,167.2,33.439998626708984,53.5,8945.1999999999989,12945.199999999999,12945.199999999999,null,"Actuals",167.2,null,null,null,null,null,null,null,null,null,null,null,null,null,null,null,null,null,null,null,null,null,null,null,null,null,null,null,null,null,null,null,null,null,null,null,null,null,null,null,null,null,null,null,null,null,null,null,null,null,null,null,null,null,null,null,null,null,null,null,null,null,null,null,null,null,null,null,null,null,null,null,null,47,"57-0024",28500.464400000001]
["30-0136","Donaldson Company, Inc.","Non-EGU",18.600000000000001,0,0,0,70.5,0,0,0,29.6,0,0,0,29.6,0,148.29999999999998,0,33.439998626708984,53.5,4959.1519999999991,8959.1519999999982,8959.1519999999982,null,"Allowables",148.29999999999998,null,null,null,null,null,null,null,null,null,null,null,null,null,null,null,null,null,null,null,null,null,null,null,null,null,null,null,null,null,null,null,null,null,null,null,null,null,null,null,null,null,null,null,null,null,null,null,null,null,null,null,null,null,null,null,null,null,null,null,null,null,null,null,null,null,null,null,null,null,null,null,null,48,"54-0009",28397.699499999999]
["30-0165","Delfasco, LLC ","Non-EGU",6.7,0,0,0,99.9,0,0,0,0,0,0,0,0,0,106.60000000000001,0,33.439998626708984,53.5,3564.7040000000002,7564.7039999999997,7564.7039999999997,null,"Allowables",106.60000000000001,null,null,null,null,null,null,null,null,null,null,null,null,null,null,null,null,null,null,null,null,null,null,null,null,null,null,null,null,null,null,null,null,null,null,null,null,null,null,null,null,null,null,null,null,null,null,null,null,null,null,null,null,null,null,null,null,null,null,null,null,null,null,null,null,null,null,null,null,null,null,null,null,49,"43-0021",28186.048000000003]
["30-0166","SumiRiko Tennessee, Inc.","Non-EGU",0,37.200000000000003,0,0,0,119.4,0,3.7,0,0,0,0,0,0,0,160.30000000000001,33.439998626708984,53.5,8576.0500000000011,12576.050000000001,12576.050000000001,null,"Actuals",160.30000000000001,null,null,null,null,null,null,null,null,null,null,null,null,null,null,null,null,null,null,null,null,null,null,null,null,null,null,null,null,null,null,null,null,null,null,null,null,null,null,null,null,null,null,null,null,null,null,null,null,null,null,null,null,null,null,null,null,null,null,null,null,null,null,null,null,null,null,null,null,null,null,null,null,50,"60-0272",28013.008000000002]
["30-0190","Sea Ray Boats","Non-EGU",48.4,0,0,0,129,0,0,0,0,0,0,0,0,0,177.4,0,33.439998626708984,53.5,5932.2559999999994,9932.2559999999994,9932.2559999999994,null,"Allowables",177.4,null,null,null,null,null,null,null,null,null,null,null,null,null,null,null,null,null,null,null,null,null,null,null,null,null,null,null,null,null,null,null,null,null,null,null,null,null,null,null,null,null,null,null,null,null,null,null,null,null,null,null,null,null,null,null,null,null,null,null,null,null,null,null,null,null,null,null,null,null,null,null,null,51,"35-0004",27943.791999999998]
["32-0196","Sonoco Flexible Packaging","Non-EGU",0,0,0,0,99,32.6,0,0,0,0,0,0,0,0,99,32.6,33.439998626708984,53.5,5054.66,9054.66,9054.66,null,"Mixed",131.6,null,null,null,null,null,null,null,null,null,null,null,null,null,null,null,null,null,null,null,null,null,null,null,null,null,null,null,null,null,null,null,null,null,null,null,null,null,null,null,null,null,null,null,null,null,null,null,null,null,null,null,null,null,null,null,null,null,null,null,null,null,null,null,null,null,null,null,null,null,null,null,null,52,"82-0315",27068.704000000002]
["32-0275","Trelleborg Coated Systems US, Inc. dba Morristown Facility","Non-EGU",0,3.4,0,0.2,0,18.899999999999999,0,2.4,0,0,0,0,0,0,0,24.9,33.439998626708984,53.5,1332.1499999999999,5332.15,7500,null,"Actuals",24.9,null,null,null,null,null,null,null,null,null,null,null,null,null,null,null,null,null,null,null,null,null,null,null,null,null,null,null,null,null,null,null,null,null,null,null,null,null,null,null,null,null,null,null,null,null,null,null,null,null,null,null,null,null,null,null,null,null,null,null,null,null,null,null,null,null,null,null,null,null,null,null,null,53,"11-0023",27031.100000000002]
["34-0014","Powell Valley Electric Cooperative, Inc","Non-EGU",0,0,0,0,0,0,0,0,0,0,"0",0,"0",0,0,0,33.439998626708984,53.5,0,4000,7500,null,"Mixed",0,null,null,null,null,null,null,null,null,null,null,null,null,null,null,null,null,null,null,null,null,null,null,null,null,null,null,null,null,null,null,null,null,null,null,null,null,null,null,null,null,null,null,null,null,null,null,null,null,null,null,null,null,null,null,null,null,null,null,null,null,null,null,null,null,null,null,null,null,null,null,null,null,54,"43-0011",26347.040000000001]
["35-0001","Kilgore Flares Company, LLC","Non-EGU",55.2,0,0.1,0,82.2,0,2,0,0.7,0,0,0,0.7,0,140.89999999999998,0,33.439998626708984,53.5,4711.695999999999,8711.6959999999999,8711.6959999999999,null,"Allowables",140.89999999999998,null,null,null,null,null,null,null,null,null,null,null,null,null,null,null,null,null,null,null,null,null,null,null,null,null,null,null,null,null,null,null,null,null,null,null,null,null,null,null,null,null,null,null,null,null,null,null,null,null,null,null,null,null,null,null,null,null,null,null,null,null,null,null,null,null,null,null,null,null,null,null,null,55,"35-0006",26319.257000000005]
["35-0004","Thyssen Elevator Systems, Inc.","Non-EGU",84.5,0,0,0,398.2,0,1.6,0,0,0,0,0,0,0,484.3,0,33.439998626708984,53.5,16194.991999999998,20194.991999999998,20194.991999999998,null,"Allowables",484.3,null,null,null,null,null,null,null,null,null,null,null,null,null,null,null,null,null,null,null,null,null,null,null,null,null,null,null,null,null,null,null,null,null,null,null,null,null,null,null,null,null,null,null,null,null,null,null,null,null,null,null,null,null,null,null,null,null,null,null,null,null,null,null,null,null,null,null,null,null,null,null,null,56,"89-0077",25707.603800000001]
["35-0006","Tennessee Gas Pipeline Company LLC -  Station 71","Non-EGU",0,18.100000000000001,0,1.4,0,15.1,0,306.10000000000002,0,0,0,0,0,0,0,340.70000000000005,33.439998626708984,53.5,18227.45,22227.45,22227.45,null,"Actuals",340.70000000000005,null,null,null,null,null,null,null,null,null,null,null,null,null,null,null,null,null,null,null,null,null,null,null,null,null,null,null,null,null,null,null,null,null,null,null,null,null,null,null,null,null,null,null,null,null,null,null,null,null,null,null,null,null,null,null,null,null,null,null,null,null,null,null,null,null,null,null,null,null,null,null,null,57,"38-0039",25166.506999999998]
["36-0002","Packaging Corp Of America Counce Mill","Non-EGU",37.700000000000003,222.2,1.5,736.1,411.2,317.7,22.4,1525.6,441.9,0,0,0,199.2,11.4,1113.8999999999999,2813,33.439998626708984,53.5,187744.31599999999,191744.31599999999,191744.31599999999,null,"Mixed",3926.8999999999996,null,null,null,null,null,null,null,null,null,null,null,null,null,null,null,null,null,null,null,null,null,null,null,null,null,null,null,null,null,null,null,null,null,null,null,null,null,null,null,null,null,null,null,null,null,null,null,null,null,null,null,null,null,null,null,null,null,null,null,null,null,null,null,null,null,null,null,null,null,null,null,null,58,"57-0189",24857.828000000001]
["36-0061","Tennessee Gas Pipeline Company,  LLC - Compressor Station 856","Non-EGU",0,0,0,0,0,0,0,0.1,0,0,0,0,0,0,0,0.1,33.439998626708984,53.5,5.3500000000000005,4005.35,7500,null,"Actuals",0.1,null,null,null,null,null,null,null,null,null,null,null,null,null,null,null,null,null,null,null,null,null,null,null,null,null,null,null,null,null,null,null,null,null,null,null,null,null,null,null,null,null,null,null,null,null,null,null,null,null,null,null,null,null,null,null,null,null,null,null,null,null,null,null,null,null,null,null,null,null,null,null,null,59,"66-0123",24779.631999999998]
["36-0074","The Praxis Companies, LLC","Non-EGU",12.7,0,0,0,486,0,0,0,0,0,0,0,0,0,498.7,0,33.439998626708984,53.5,16676.527999999998,20676.527999999998,20676.527999999998,null,"Allowables",498.7,null,null,null,null,null,null,null,null,null,null,null,null,null,null,null,null,null,null,null,null,null,null,null,null,null,null,null,null,null,null,null,null,null,null,null,null,null,null,null,null,null,null,null,null,null,null,null,null,null,null,null,null,null,null,null,null,null,null,null,null,null,null,null,null,null,null,null,null,null,null,null,null,60,"72-0107",24770.732799999998]
["37-0001","Holliston LLC","Non-EGU",0,0.8,0,0.1,0,96.1,0,18.399999999999999,0,0,0,0,0,0,0,115.4,33.439998626708984,53.5,6173.9000000000005,10173.900000000001,10173.900000000001,null,"Actuals",115.4,null,null,null,null,null,null,null,null,null,null,null,null,null,null,null,null,null,null,null,null,null,null,null,null,null,null,null,null,null,null,null,null,null,null,null,null,null,null,null,null,null,null,null,null,null,null,null,null,null,null,null,null,null,null,null,null,null,null,null,null,null,null,null,null,null,null,null,null,null,null,null,null,61,"54-0132",24468.16]
["37-0007","Tennessee Valley Authority (TVA) - John Sevier Combined Cycle Plant (JSCC)","EGU",0,77,0,11,0,49,0,199,0,0,0,0,0,0,0,336,46.819999694824219,74.910003662109375,25169.759999999998,29169.759999999998,29169.759999999998,null,"Actuals",336,null,null,null,null,null,null,null,null,null,null,null,null,null,null,null,null,null,null,null,null,null,null,null,null,null,null,null,null,null,null,null,null,null,null,null,null,null,null,null,null,null,null,null,null,null,null,null,null,null,null,null,null,null,null,null,null,null,null,null,null,null,null,null,null,null,null,null,null,null,null,null,null,62,"72-0049",23746.790399999998]
["37-0026","AGC Flat Glass North America, Inc. - Greenland Plant","Non-EGU",213.6,0,582.29999999999995,0,117.7,0,2477.1260000000002,0,0.75,0,0,0,0,0,3391.4760000000001,0,33.439998626708984,53.5,113410.95744,117410.95744,117410.95744,null,"Allowables",3391.4760000000001,null,null,null,null,null,null,null,null,null,null,null,null,null,null,null,null,null,null,null,null,null,null,null,null,null,null,null,null,null,null,null,null,null,null,null,null,null,null,null,null,null,null,null,null,null,null,null,null,null,null,null,null,null,null,null,null,null,null,null,null,null,null,null,null,null,null,null,null,null,null,null,null,63,"63-0092",23667.412199999999]
["37-0028","BAE SYSTEMS Ordnance Systems Inc. Holston Army Ammunition Plant","Non-EGU",0,89,0,1699,0,225,0,338,0,5.5,0,0,0,0,0,2356.5,33.439998626708984,53.5,126072.75,130072.75,130072.75,null,"Actuals",2356.5,null,null,null,null,null,null,null,null,null,null,null,null,null,null,null,null,null,null,null,null,null,null,null,null,null,null,null,null,null,null,null,null,null,null,null,null,null,null,null,null,null,null,null,null,null,null,null,null,null,null,null,null,null,null,null,null,null,null,null,null,null,null,null,null,null,null,null,null,null,null,null,null,64,"28-0025",23523.856]
["37-0067","Hutchinson Sealing Systems Inc.","Non-EGU",41,0,0,0,217,0,0,0,0,0,0,0,0,0,258,0,33.439998626708984,53.5,8627.5199999999986,12627.519999999999,12627.519999999999,null,"Allowables",{"$f":"SUM(R66:S66)","v":258},null,null,null,null,null,null,null,null,null,null,null,null,null,null,null,null,null,null,null,null,null,null,null,null,null,null,null,null,null,null,null,null,null,null,null,null,null,null,null,null,null,null,null,null,null,null,null,null,null,null,null,null,null,null,null,null,null,null,null,null,null,null,null,null,null,null,null,null,null,null,null,null,65,"23-0120",23197.551999999996]
["37-0076","Mundet Tennessee, Inc","Non-EGU",19.7,0,1,0,236,0,7,0,0,0,0,0,0,0,263.7,0,33.439998626708984,53.5,8818.1279999999988,12818.127999999999,12818.127999999999,null,"Allowables",263.7,null,null,null,null,null,null,null,null,null,null,null,null,null,null,null,null,null,null,null,null,null,null,null,null,null,null,null,null,null,null,null,null,null,null,null,null,null,null,null,null,null,null,null,null,null,null,null,null,null,null,null,null,null,null,null,null,null,null,null,null,null,null,null,null,null,null,null,null,null,null,null,null,66,"06-0215",21600.639999999999]
["37-0080","Carter Valley Landfill","Non-EGU",0,0,0,0,0,6.8,0,0,0,0,0,0,0,22.1,0,28.900000000000002,33.439998626708984,53.5,1546.15,5546.15,7500,null,"Actuals",28.900000000000002,null,null,null,null,null,null,null,null,null,null,null,null,null,null,null,null,null,null,null,null,null,null,null,null,null,null,null,null,null,null,null,null,null,null,null,null,null,null,null,null,null,null,null,null,null,null,null,null,null,null,null,null,null,null,null,null,null,null,null,null,null,null,null,null,null,null,null,null,null,null,null,null,67,"05-0176",21570.976000000002]
["38-0039","Teknor Apex Tennessee Company","Non-EGU",63.4,4.5999999999999996,0,0.2,214,36.799999999999997,0,14,64.2,9.6999999999999993,0,0,0,0,341.59999999999997,65.3,33.439998626708984,53.5,14916.653999999997,18916.653999999995,18916.653999999995,null,"Mixed",406.9,null,null,null,null,null,null,null,null,null,null,null,null,null,null,null,null,null,null,null,null,null,null,null,null,null,null,null,null,null,null,null,null,null,null,null,null,null,null,null,null,null,null,null,null,null,null,null,null,null,null,null,null,null,null,null,null,null,null,null,null,null,null,null,null,null,null,null,null,null,null,null,null,68,"38-0069",21516.61]
["38-0053","ANR Pipeline Company dba Brownsville Compressor Station","Non-EGU",0,0,0,0,0,0,0,0.01,0,0,0,0,0,0,0,0.01,33.439998626708984,53.5,0.53500000000000003,4000.5349999999999,7500,null,"Actuals",0.01,null,null,null,null,null,null,null,null,null,null,null,null,null,null,null,null,null,null,null,null,null,null,null,null,null,null,null,null,null,null,null,null,null,null,null,null,null,null,null,null,null,null,null,null,null,null,null,null,null,null,null,null,null,null,null,null,null,null,null,null,null,null,null,null,null,null,null,null,null,null,null,null,69,"90-0029",21511.647999999997]
["38-0068","Tennessee Valley Authority - Brownsville Combustion Turbine Plant","EGU",0,5,0,1,0,7,0,97,0,0,0,0,0,0,0,110,46.819999694824219,74.910003662109375,8240.1,12240.1,12240.1,null,"Actuals",110,null,null,null,null,null,null,null,null,null,null,null,null,null,null,null,null,null,null,null,null,null,null,null,null,null,null,null,null,null,null,null,null,null,null,null,null,null,null,null,null,null,null,null,null,null,null,null,null,null,null,null,null,null,null,null,null,null,null,null,null,null,null,null,null,null,null,null,null,null,null,null,null,70,"27-0100",21017.248]
["38-0069","Tennessee Valley Authority Lagoon Creek Plant","EGU",0,24,0,6,0,31,0,130,0,0,0,0,0,0,0,191,46.819999694824219,74.910003662109375,14307.81,18307.809999999998,18307.809999999998,null,"Actuals",191,null,null,null,null,null,null,null,null,null,null,null,null,null,null,null,null,null,null,null,null,null,null,null,null,null,null,null,null,null,null,null,null,null,null,null,null,null,null,null,null,null,null,null,null,null,null,null,null,null,null,null,null,null,null,null,null,null,null,null,null,null,null,null,null,null,null,null,null,null,null,null,null,71,"22-0177",21002.415999999997]
["39-0072","Leroy Somer Americas","Non-EGU",80.8,0,13.1,0,155,0,63.5,0,0,0,0,0,0,0,312.39999999999998,0,33.439998626708984,53.5,10446.655999999999,14446.655999999999,14446.655999999999,null,"Allowables",312.39999999999998,null,null,null,null,null,null,null,null,null,null,null,null,null,null,null,null,null,null,null,null,null,null,null,null,null,null,null,null,null,null,null,null,null,null,null,null,null,null,null,null,null,null,null,null,null,null,null,null,null,null,null,null,null,null,null,null,null,null,null,null,null,null,null,null,null,null,null,null,null,null,null,null,72,"67-0054",20824.432000000001]
["40-0024","ANR Pipeline Company dba Cottage Grove Compressor Station","Non-EGU",0,3.5,0,0,0,8.6,0,113.8,0,0,0,0,0,0,0,125.89999999999999,33.439998626708984,53.5,6735.65,10735.65,10735.65,null,"Actuals",125.89999999999999,null,null,null,null,null,null,null,null,null,null,null,null,null,null,null,null,null,null,null,null,null,null,null,null,null,null,null,null,null,null,null,null,null,null,null,null,null,null,null,null,null,null,null,null,null,null,null,null,null,null,null,null,null,null,null,null,null,null,null,null,null,null,null,null,null,null,null,null,null,null,null,null,73,"16-0067",20685.397000000001]
["40-0033","Institutional Casework, Inc.","Non-EGU",27.6,0,0,0,128.1,0,0,0,0,0,0,0,0,0,155.69999999999999,0,33.439998626708984,53.5,5206.6079999999993,9206.6080000000002,9206.6080000000002,null,"Allowables",155.69999999999999,null,null,null,null,null,null,null,null,null,null,null,null,null,null,null,null,null,null,null,null,null,null,null,null,null,null,null,null,null,null,null,null,null,null,null,null,null,null,null,null,null,null,null,null,null,null,null,null,null,null,null,null,null,null,null,null,null,null,null,null,null,null,null,null,null,null,null,null,null,null,null,null,74,"14-0022",20404.191999999995]
["40-0077","Tank Lining Of Paris","Non-EGU",34.6,0,0,0,189.6,0,2.6,0,0,0,0,0,0,0,226.79999999999998,0,33.439998626708984,53.5,7584.1919999999991,11584.191999999999,11584.191999999999,null,"Allowables",226.79999999999998,null,null,null,null,null,null,null,null,null,null,null,null,null,null,null,null,null,null,null,null,null,null,null,null,null,null,null,null,null,null,null,null,null,null,null,null,null,null,null,null,null,null,null,null,null,null,null,null,null,null,null,null,null,null,null,null,null,null,null,null,null,null,null,null,null,null,null,null,null,null,null,null,75,"81-0030",20043.28]
["40-0083","Allegion, PLC, c/o Schlage Lock Company, LLC dba Republic Doors and Frames","Non-EGU",27.4,0,0,0,190.2,0,0,0,0,0,0,0,0,0,217.6,0,33.439998626708984,53.5,7276.543999999999,11276.543999999998,11276.543999999998,null,"Allowables",217.6,null,null,null,null,null,null,null,null,null,null,null,null,null,null,null,null,null,null,null,null,null,null,null,null,null,null,null,null,null,null,null,null,null,null,null,null,null,null,null,null,null,null,null,null,null,null,null,null,null,null,null,null,null,null,null,null,null,null,null,null,null,null,null,null,null,null,null,null,null,null,null,null,76,"60-0132",19558.625]
["40-0102","PML Inc","Non-EGU",5.9,0,0,0,0,13.1,0,0.4,0,0,0,0,0,0,5.9,13.5,33.439998626708984,53.5,919.54600000000005,4919.5460000000003,7500,null,"Mixed",19.399999999999999,null,null,null,null,null,null,null,null,null,null,null,null,null,null,null,null,null,null,null,null,null,null,null,null,null,null,null,null,null,null,null,null,null,null,null,null,null,null,null,null,null,null,null,null,null,null,null,null,null,null,null,null,null,null,null,null,null,null,null,null,null,null,null,null,null,null,null,null,null,null,null,null,77,"39-0072",19445.055999999997]
["40-0107","Dana Sealing Products, LLC","Non-EGU",0,0,0,0,0,34,0,0,0,0,0,0,0,0,0,34,33.439998626708984,53.5,1819,5819,7500,null,"Actuals",34,null,null,null,null,null,null,null,null,null,null,null,null,null,null,null,null,null,null,null,null,null,null,null,null,null,null,null,null,null,null,null,null,null,null,null,null,null,null,null,null,null,null,null,null,null,null,null,null,null,null,null,null,null,null,null,null,null,null,null,null,null,null,null,null,null,null,null,null,null,null,null,null,78,"60-0200",19178.080000000002]
["41-0002","Tennessee Gas Pipeline Company LLC - Compressor Station 860","Non-EGU",0,19.8,0,243,0,49.1,0,1070,0,0,0,0,0,0,0,1381.9,33.439998626708984,53.5,73931.650000000009,77931.650000000009,77931.650000000009,null,"Actuals",1381.9,null,null,null,null,null,null,null,null,null,null,null,null,null,null,null,null,null,null,null,null,null,null,null,null,null,null,null,null,null,null,null,null,null,null,null,null,null,null,null,null,null,null,null,null,null,null,null,null,null,null,null,null,null,null,null,null,null,null,null,null,null,null,null,null,null,null,null,null,null,null,null,null,79,"18-0117",19172.116000000002]
["43-0003","Rockwood Lithium Inc.","Non-EGU",8.1,0,0,0,98.6,0,0,0,0,0,0,0,0,0,106.69999999999999,0,33.439998626708984,53.5,3568.0479999999993,7568.0479999999989,7568.0479999999989,null,"Allowables",106.69999999999999,null,null,null,null,null,null,null,null,null,null,null,null,null,null,null,null,null,null,null,null,null,null,null,null,null,null,null,null,null,null,null,null,null,null,null,null,null,null,null,null,null,null,null,null,null,null,null,null,null,null,null,null,null,null,null,null,null,null,null,null,null,null,null,null,null,null,null,null,null,null,null,null,80,"52-0002",18817.167999999998]
["43-0007","The Chemours Company FC LLC ","Non-EGU",424.2,26.19,39,26.62,5.7,77.5,0,75.900000000000006,127.8,1309.3,0,0,0,0,596.69999999999993,1515.51,33.439998626708984,53.5,101033.433,105033.433,105033.433,null,"Mixed",2112.21,null,null,null,null,null,null,null,null,null,null,null,null,null,null,null,null,null,null,null,null,null,null,null,null,null,null,null,null,null,null,null,null,null,null,null,null,null,null,null,null,null,null,null,null,null,null,null,null,null,null,null,null,null,null,null,null,null,null,null,null,null,null,null,null,null,null,null,null,null,null,null,null,81,"62-0096",18412.2]
["43-0010","Hood Container Corporation","Non-EGU",0,135,0,53,0,178,0,357,0,5,0,0,16.2,0,16.2,728,33.439998626708984,53.5,39489.728000000003,43489.728000000003,43489.728000000003,null,"Mixed",744.2,null,null,null,null,null,null,null,null,null,null,null,null,null,null,null,null,null,null,null,null,null,null,null,null,null,null,null,null,null,null,null,null,null,null,null,null,null,null,null,null,null,null,null,null,null,null,null,null,null,null,null,null,null,null,null,null,null,null,null,null,null,null,null,null,null,null,null,null,null,null,null,null,82,"53-0090",18248.608]
["43-0011","Tennessee Valley Authority - Johnsonville Fossil Plant ","EGU",43,28,22,12,14,28,114,30,0,0,0,0,0,0,193,98,46.819999694824219,74.910003662109375,16377.439999999999,20377.439999999999,20377.439999999999,null,"Mixed",291,null,null,null,null,null,null,null,null,null,null,null,null,null,null,null,null,null,null,null,null,null,null,null,null,null,null,null,null,null,null,null,null,null,null,null,null,null,null,null,null,null,null,null,null,null,null,null,null,null,null,null,null,null,null,null,null,null,null,null,null,null,null,null,null,null,null,null,null,null,null,null,null,83,"05-0199",17976.687999999998]
["43-0021","Prince Erachem Incorporated","Non-EGU",78.5,0,222.7,0,5.0999999999999996,0,182.9,0,0,0,0,0,0,0,489.20000000000005,0,33.439998626708984,53.5,16358.848,20358.847999999998,20358.847999999998,null,"Allowables",489.20000000000005,null,null,null,null,null,null,null,null,null,null,null,null,null,null,null,null,null,null,null,null,null,null,null,null,null,null,null,null,null,null,null,null,null,null,null,null,null,null,null,null,null,null,null,null,null,null,null,null,null,null,null,null,null,null,null,null,null,null,null,null,null,null,null,null,null,null,null,null,null,null,null,null,84,"13-0083",17704.692000000003]
["45-0085","Ball Metal Food Container, LLC","Non-EGU",9.6,0,0.1,0,249.5,0,10.5,0,0,0,0,0,0,0,269.7,0,33.439998626708984,53.5,9018.7679999999982,13018.767999999998,13018.767999999998,null,"Allowables",269.7,null,null,null,null,null,null,null,null,null,null,null,null,null,null,null,null,null,null,null,null,null,null,null,null,null,null,null,null,null,null,null,null,null,null,null,null,null,null,null,null,null,null,null,null,null,null,null,null,null,null,null,null,null,null,null,null,null,null,null,null,null,null,null,null,null,null,null,null,null,null,null,null,85,"16-0113",17447.68]
["45-0101","Overman International Corporation","Non-EGU",0,0,0,0,0,36.6,0,0,0,0,0,0,0,0,0,36.6,33.439998626708984,53.5,1958.1000000000001,5958.1,7500,null,"Actuals",36.6,null,null,null,null,null,null,null,null,null,null,null,null,null,null,null,null,null,null,null,null,null,null,null,null,null,null,null,null,null,null,null,null,null,null,null,null,null,null,null,null,null,null,null,null,null,null,null,null,null,null,null,null,null,null,null,null,null,null,null,null,null,null,null,null,null,null,null,null,null,null,null,null,86,"22-0072",17384.348100000003]
["47-0018","University of Tennessee","Non-EGU",0,2.6,0,0.4,0,5.2,0,38.200000000000003,0,0,0,0,0,0,0,46.400000000000006,33.439998626708984,53.5,2482.4,6482.4,7500,null,"Actuals",46.400000000000006,null,null,null,null,null,null,null,null,null,null,null,null,null,null,null,null,null,null,null,null,null,null,null,null,null,null,null,null,null,null,null,null,null,null,null,null,null,null,null,null,null,null,null,null,null,null,null,null,null,null,null,null,null,null,null,null,null,null,null,null,null,null,null,null,null,null,null,null,null,null,null,null,87,"45-0085",17333.968000000001]
["49-0049","SRG Global Coatings, Inc. dba SRG Global Ripley","Non-EGU",17.2,0,0.2,0,468.8,0,15.2,0,0,0,0,0,0,0,501.4,0,33.439998626708984,53.5,16766.815999999999,20766.815999999999,20766.815999999999,null,"Allowables",501.4,null,null,null,null,null,null,null,null,null,null,null,null,null,null,null,null,null,null,null,null,null,null,null,null,null,null,null,null,null,null,null,null,null,null,null,null,null,null,null,null,null,null,null,null,null,null,null,null,null,null,null,null,null,null,null,null,null,null,null,null,null,null,null,null,null,null,null,null,null,null,null,null,88,"49-0068",17329.024000000001]
["49-0068","Marvin Windows Of Tennessee, Inc.","Non-EGU",75.099999999999994,0,0,0,194.5,0,0,0,0,0,0,0,0,0,269.60000000000002,0,33.439998626708984,53.5,9015.4240000000009,13015.424000000001,13015.424000000001,null,"Allowables",269.60000000000002,null,null,null,null,null,null,null,null,null,null,null,null,null,null,null,null,null,null,null,null,null,null,null,null,null,null,null,null,null,null,null,null,null,null,null,null,null,null,null,null,null,null,null,null,null,null,null,null,null,null,null,null,null,null,null,null,null,null,null,null,null,null,null,null,null,null,null,null,null,null,null,null,89,"30-0001",17215.311999999998]
["50-0003","GrafTech Advanced Graphite Materials LLC","Non-EGU",214.5,0,521.70000000000005,0,46.5,0,26.4,0,0,0,81.5,0,0,0,890.6,0,33.439998626708984,53.5,29781.663999999997,33781.663999999997,33781.663999999997,null,"Allowables",890.6,null,null,null,null,null,null,null,null,null,null,null,null,null,null,null,null,null,null,null,null,null,null,null,null,null,null,null,null,null,null,null,null,null,null,null,null,null,null,null,null,null,null,null,null,null,null,null,null,null,null,null,null,null,null,null,null,null,null,null,null,null,null,null,null,null,null,null,null,null,null,null,null,90,"71-0020",17195.536]
["50-0054","Graphic Packaging International, Inc.","Non-EGU",104.3,0,0,0,0,16.204000000000001,0,0,0,0,0,0,0,0,104.3,16.204000000000001,33.439998626708984,53.5,4354.7059999999992,8354.7059999999983,8354.7059999999983,null,"Mixed",120.50399999999999,null,null,null,null,null,null,null,null,null,null,null,null,null,null,null,null,null,null,null,null,null,null,null,null,null,null,null,null,null,null,null,null,null,null,null,null,null,null,null,null,null,null,null,null,null,null,null,null,null,null,null,null,null,null,null,null,null,null,null,null,null,null,null,null,null,null,null,null,null,null,null,null,91,"66-0101",17193.714]
["51-0031A"," Oliver Fiberglass Products","Non-EGU",0,1,0,0,0,12,0,0,0,0,0,0,0,0,0,13,33.439998626708984,53.5,695.5,4695.5,7500,null,"Actuals",13,null,null,null,null,null,null,null,null,null,null,null,null,null,null,null,null,null,null,null,null,null,null,null,null,null,null,null,null,null,null,null,null,null,null,null,null,null,null,null,null,null,null,null,null,null,null,null,null,null,null,null,null,null,null,null,null,null,null,null,null,null,null,null,null,null,null,null,null,null,null,null,null,92,"26-0086",17167.510000000002]
["51-0031B"," Oliver Fiberglass Products","Non-EGU",0,1,0,0,0,24,0,0,0,0,0,0,0,0,0,25,33.439998626708984,53.5,1337.5,5337.5,7500,null,"Actuals",25,null,null,null,null,null,null,null,null,null,null,null,null,null,null,null,null,null,null,null,null,null,null,null,null,null,null,null,null,null,null,null,null,null,null,null,null,null,null,null,null,null,null,null,null,null,null,null,null,null,null,null,null,null,null,null,null,null,null,null,null,null,null,null,null,null,null,null,null,null,null,null,null,93,"23-0092",17049.592000000001]
["52-0002","Goodman Company, L.P.","Non-EGU",51.9,0,0,0,231.1,0,16.7,0,0,0,0,0,0,0,299.7,0,33.439998626708984,53.5,10021.967999999999,14021.967999999999,14021.967999999999,null,"Allowables",299.7,null,null,null,null,null,null,null,null,null,null,null,null,null,null,null,null,null,null,null,null,null,null,null,null,null,null,null,null,null,null,null,null,null,null,null,null,null,null,null,null,null,null,null,null,null,null,null,null,null,null,null,null,null,null,null,null,null,null,null,null,null,null,null,null,null,null,null,null,null,null,null,null,94,"37-0076",17037.328000000001]
["52-0085","Latham Pool Products, Inc. d/b/a Viking Pools - TN","Non-EGU",45,0,0,0,200,0,0,0,0,0,0,0,0,0,245,0,33.439998626708984,53.5,8192.7999999999993,12192.8,12192.8,null,"Allowables",245,null,null,null,null,null,null,null,null,null,null,null,null,null,null,null,null,null,null,null,null,null,null,null,null,null,null,null,null,null,null,null,null,null,null,null,null,null,null,null,null,null,null,null,null,null,null,null,null,null,null,null,null,null,null,null,null,null,null,null,null,null,null,null,null,null,null,null,null,null,null,null,null,95,"37-0067",16755.519999999997]
["53-0003","Viskase Companies Inc","Non-EGU",11.5,0,60.6,0,1168,0,41.4,0,0,0,0,0,0,181,1281.5,181,33.439998626708984,53.5,52536.86,56536.86,56536.86,null,"Mixed",1462.5,null,null,null,null,null,null,null,null,null,null,null,null,null,null,null,null,null,null,null,null,null,null,null,null,null,null,null,null,null,null,null,null,null,null,null,null,null,null,null,null,null,null,null,null,null,null,null,null,null,null,null,null,null,null,null,null,null,null,null,null,null,null,null,null,null,null,null,null,null,null,null,null,96,"82-0153",16429.216]
["53-0081","Tate & Lyle Ingredients Americas LLC","Non-EGU",56.2,0,98.2,0,53.8,0,518,0,0,0,0,0,0.5,0,726.7,0,33.439998626708984,53.5,24300.847999999998,28300.847999999998,28300.847999999998,null,"Allowables",726.7,null,null,null,null,null,null,null,null,null,null,null,null,null,null,null,null,null,null,null,null,null,null,null,null,null,null,null,null,null,null,null,null,null,null,null,null,null,null,null,null,null,null,null,null,null,null,null,null,null,null,null,null,null,null,null,null,null,null,null,null,null,null,null,null,null,null,null,null,null,null,null,null,97,"01-0114",16130.521999999999]
["53-0090","Hubbell Lenoir City, Inc.","Non-EGU",63.7,0,0,0,224.5,0,0,0,0,0,0,0,0,0,288.2,0,33.439998626708984,53.5,9637.4079999999994,13637.407999999999,13637.407999999999,null,"Allowables",288.2,null,null,null,null,null,null,null,null,null,null,null,null,null,null,null,null,null,null,null,null,null,null,null,null,null,null,null,null,null,null,null,null,null,null,null,null,null,null,null,null,null,null,null,null,null,null,null,null,null,null,null,null,null,null,null,null,null,null,null,null,null,null,null,null,null,null,null,null,null,null,null,null,98,"52-0085",16112.8]
["53-0093","Kimberly-Clark Corporation - Loudon Mill","Non-EGU",230.5,2.1,0.5,0.2,203.6,2.2000000000000002,42.1,39.9,0,0,0,0,0,0,476.70000000000005,44.4,33.439998626708984,53.5,18316.248,22316.248,22316.248,null,"Mixed",521.1,null,null,null,null,null,null,null,null,null,null,null,null,null,null,null,null,null,null,null,null,null,null,null,null,null,null,null,null,null,null,null,null,null,null,null,null,null,null,null,null,null,null,null,null,null,null,null,null,null,null,null,null,null,null,null,null,null,null,null,null,null,null,null,null,null,null,null,null,null,null,null,null,99,"74-0102",15969.423999999999]
["53-0098","Malibu Boats, LLC","Non-EGU",72,0,0,0,460,0,0,0,0,0,0,0,0,0,532,0,33.439998626708984,53.5,17790.079999999998,21790.079999999998,21790.079999999998,null,"Allowables",532,null,null,null,null,null,null,null,null,null,null,null,null,null,null,null,null,null,null,null,null,null,null,null,null,null,null,null,null,null,null,null,null,null,null,null,null,null,null,null,null,null,null,null,null,null,null,null,null,null,null,null,null,null,null,null,null,null,null,null,null,null,null,null,null,null,null,null,null,null,null,null,null,100,"57-0254",15523.209000000001]
["53-0110","Santek Waste Services, Inc. dba Loudon County (Matlock Bend) Landfill","Non-EGU",0,0,0,0,70,0,0,0,0,0,0,0,0,0,70,0,33.439998626708984,53.5,2340.7999999999997,6340.7999999999993,7500,null,"Allowables",70,null,null,null,null,null,null,null,null,null,null,null,null,null,null,null,null,null,null,null,null,null,null,null,null,null,null,null,null,null,null,null,null,null,null,null,null,null,null,null,null,null,null,null,null,null,null,null,null,null,null,null,null,null,null,null,null,null,null,null,null,null,null,null,null,null,null,null,null,null,null,null,null,101,"62-0107",15523.209000000001]
["54-0009","J. M. Huber Corporation","Non-EGU",368.93,1.17,9.2100000000000009,0.5,6.41,0.85,85.12,15.45,0,0,0,0,0,0,469.67,17.97,33.439998626708984,53.5,16667.159799999998,20667.159799999998,20667.159799999998,null,"Mixed",487.64,null,null,null,null,null,null,null,null,null,null,null,null,null,null,null,null,null,null,null,null,null,null,null,null,null,null,null,null,null,null,null,null,null,null,null,null,null,null,null,null,null,null,null,null,null,null,null,null,null,null,null,null,null,null,null,null,null,null,null,null,null,null,null,null,null,null,null,null,null,null,null,null,102,"40-0077",15212.991999999998]
["54-0012","Resolute FP US Inc","Non-EGU",707,152.9,1042,6.6,898,25.8,1172,353.9,500.2,0,0,0,64.5,0,4383.7,539.20000000000005,33.439998626708984,53.5,175438.128,179438.128,179438.128,null,"Mixed",4922.8999999999996,null,null,null,null,null,null,null,null,null,null,null,null,null,null,null,null,null,null,null,null,null,null,null,null,null,null,null,null,null,null,null,null,null,null,null,null,null,null,null,null,null,null,null,null,null,null,null,null,null,null,null,null,null,null,null,null,null,null,null,null,null,null,null,null,null,null,null,null,null,null,null,null,103,"62-0125",15203.103999999999]
["54-0132","Johns Manville","Non-EGU",128.30000000000001,0,102.1,0,13.2,0,161,0,4.7,0,0,0,4.7,0,414,0,33.439998626708984,53.5,13844.16,17844.16,17844.16,null,"Allowables",414,null,null,null,null,null,null,null,null,null,null,null,null,null,null,null,null,null,null,null,null,null,null,null,null,null,null,null,null,null,null,null,null,null,null,null,null,null,null,null,null,null,null,null,null,null,null,null,null,null,null,null,null,null,null,null,null,null,null,null,null,null,null,null,null,null,null,null,null,null,null,null,null,104,"59-0133",15124]
["54-0167","Johns Manville Corporation","Non-EGU",132.19999999999999,0,8.8000000000000007,0,288.10000000000002,0,132.5,0,0,0,0,0,0,0,561.6,0,33.439998626708984,53.5,18779.903999999999,22779.903999999999,22779.903999999999,null,"Allowables",561.6,null,null,null,null,null,null,null,null,null,null,null,null,null,null,null,null,null,null,null,null,null,null,null,null,null,null,null,null,null,null,null,null,null,null,null,null,null,null,null,null,null,null,null,null,null,null,null,null,null,null,null,null,null,null,null,null,null,null,null,null,null,null,null,null,null,null,null,null,null,null,null,null,105,"15-0009",15025.119999999999]
["54-0174","Waupaca Foundry, Inc. Plant 6","Non-EGU",297.2,0,96.3,0,369,0,200.4,0,1.4,0,0,0,1.4,0,965.69999999999993,0,33.439998626708984,53.5,32293.007999999994,36293.007999999994,36293.007999999994,null,"Allowables",965.69999999999993,null,null,null,null,null,null,null,null,null,null,null,null,null,null,null,null,null,null,null,null,null,null,null,null,null,null,null,null,null,null,null,null,null,null,null,null,null,null,null,null,null,null,null,null,null,null,null,null,null,null,null,null,null,null,null,null,null,null,null,null,null,null,null,null,null,null,null,null,null,null,null,null,106,"30-0132",14953.272000000001]
["54-0176","Dynasty Spas  Inc.","Non-EGU",0,1.1000000000000001,0,0,0,22.7,0,0,0,0,0,0,0,0,0,23.8,33.439998626708984,53.5,1273.3,5273.3,7500,null,"Actuals",23.8,null,null,null,null,null,null,null,null,null,null,null,null,null,null,null,null,null,null,null,null,null,null,null,null,null,null,null,null,null,null,null,null,null,null,null,null,null,null,null,null,null,null,null,null,null,null,null,null,null,null,null,null,null,null,null,null,null,null,null,null,null,null,null,null,null,null,null,null,null,null,null,null,107,"40-0083",14758.143999999998]
["54-0188","Meadow Branch Landfill - Environmental Trust Company","Non-EGU",0,54.1,0,0,0,6.8,0,0.2,0,0,0,3.9,0,0,0,65,33.439998626708984,53.5,3477.5,7477.5,7500,null,"Actuals",65,null,null,null,null,null,null,null,null,null,null,null,null,null,null,null,null,null,null,null,null,null,null,null,null,null,null,null,null,null,null,null,null,null,null,null,null,null,null,null,null,null,null,null,null,null,null,null,null,null,null,null,null,null,null,null,null,null,null,null,null,null,null,null,null,null,null,null,null,null,null,null,null,108,"26-0079",14679.039999999999]
["56-0004","Columbia Gulf Transmission Co. Hartsville Compressor Station","Non-EGU",0,0.2,0,0,0,3.6,0,3.3,0,0,0,0.1,0,0,0,7.1999999999999993,33.439998626708984,53.5,385.2,4385.2,7500,null,"Actuals",7.1999999999999993,null,null,null,null,null,null,null,null,null,null,null,null,null,null,null,null,null,null,null,null,null,null,null,null,null,null,null,null,null,null,null,null,null,null,null,null,null,null,null,null,null,null,null,null,null,null,null,null,null,null,null,null,null,null,null,null,null,null,null,null,null,null,null,null,null,null,null,null,null,null,null,null,109,"82-0433",14612.305]
["57-0020","Armstrong Hardwood Flooring Company","Non-EGU",0,37.5,0,1.1000000000000001,0,41.7,0,48.9,0,0,0,0,0,0,0,129.20000000000002,33.439998626708984,53.5,6912.2000000000007,10912.2,10912.2,null,"Actuals",129.20000000000002,null,null,null,null,null,null,null,null,null,null,null,null,null,null,null,null,null,null,null,null,null,null,null,null,null,null,null,null,null,null,null,null,null,null,null,null,null,null,null,null,null,null,null,null,null,null,null,null,null,null,null,null,null,null,null,null,null,null,null,null,null,null,null,null,null,null,null,null,null,null,null,null,110,"30-0166",14501.253000000002]
["57-0024","Owens Corning Composite Materials, LLC","Non-EGU",4.7,119.1,0.1,95.3,0.5,85.4,13.51,52.6,0,0,0,7.4,0,0,18.809999999999999,359.79999999999995,33.439998626708984,53.5,19878.306399999998,23878.306399999998,23878.306399999998,null,"Mixed",378.60999999999996,null,null,null,null,null,null,null,null,null,null,null,null,null,null,null,null,null,null,null,null,null,null,null,null,null,null,null,null,null,null,null,null,null,null,null,null,null,null,null,null,null,null,null,null,null,null,null,null,null,null,null,null,null,null,null,null,null,null,null,null,null,null,null,null,null,null,null,null,null,null,null,null,111,"89-0001",14268.687999999998]
["57-0035","Pringles Manufacturing Company","Non-EGU",173.2,0,6.7,0,91.4,0,234.4,0,0,0,0,0,0,0,505.69999999999993,0,33.439998626708984,53.5,16910.607999999997,20910.607999999997,20910.607999999997,null,"Allowables",505.69999999999993,null,null,null,null,null,null,null,null,null,null,null,null,null,null,null,null,null,null,null,null,null,null,null,null,null,null,null,null,null,null,null,null,null,null,null,null,null,null,null,null,null,null,null,null,null,null,null,null,null,null,null,null,null,null,null,null,null,null,null,null,null,null,null,null,null,null,null,null,null,null,null,null,112,"38-0068",14088.099999999999]
["57-0189","Gerdau Ameristeel US, Inc.","Non-EGU",8.3000000000000007,47.9,0.4,16.8,1.1000000000000001,80,31,142.9,0,0,0,0,0,0,40.799999999999997,287.60000000000002,33.439998626708984,53.5,16750.952000000001,20750.952000000001,20750.952000000001,null,"Mixed",328.40000000000003,null,null,null,null,null,null,null,null,null,null,null,null,null,null,null,null,null,null,null,null,null,null,null,null,null,null,null,null,null,null,null,null,null,null,null,null,null,null,null,null,null,null,null,null,null,null,null,null,null,null,null,null,null,null,null,null,null,null,null,null,null,null,null,null,null,null,null,null,null,null,null,null,113,"94-0072",14068.887000000001]
["57-0221","Foam Fabricators, Inc.","Non-EGU",0,0.2,0,0,0,77.900000000000006,0,1.9,0,0,0,0,0,0,0,80.000000000000014,33.439998626708984,53.5,4280.0000000000009,8280,8280,null,"Actuals",80.000000000000014,null,null,null,null,null,null,null,null,null,null,null,null,null,null,null,null,null,null,null,null,null,null,null,null,null,null,null,null,null,null,null,null,null,null,null,null,null,null,null,null,null,null,null,null,null,null,null,null,null,null,null,null,null,null,null,null,null,null,null,null,null,null,null,null,null,null,null,null,null,null,null,null,114,"76-0071",13708.582000000002]
["57-0254","Sonoco Products Company","Non-EGU",0,0,0,0,0,175.9,0,0,0,0,0,0,0,0,0,175.9,33.439998626708984,53.5,9410.65,13410.65,13410.65,null,"Actuals",175.9,null,null,null,null,null,null,null,null,null,null,null,null,null,null,null,null,null,null,null,null,null,null,null,null,null,null,null,null,null,null,null,null,null,null,null,null,null,null,null,null,null,null,null,null,null,null,null,null,null,null,null,null,null,null,null,null,null,null,null,null,null,null,null,null,null,null,null,null,null,null,null,null,115,"18-0090",13675.826999999999]
["57-0259","Madison County Development, LLC dba Jackson-Madison County Landfill","Non-EGU",0,9.6,0,4.3,0,8.8000000000000007,0,11.3,0,0,0,0,0,0,0,34,33.439998626708984,53.5,1819,5819,7500,null,"Actuals",34,null,null,null,null,null,null,null,null,null,null,null,null,null,null,null,null,null,null,null,null,null,null,null,null,null,null,null,null,null,null,null,null,null,null,null,null,null,null,null,null,null,null,null,null,null,null,null,null,null,null,null,null,null,null,null,null,null,null,null,null,null,null,null,null,null,null,null,null,null,null,null,null,116,"73-0107",13299.664000000001]
["57-0286","Missouri Smelting Technology, Inc.","Non-EGU",59.2,0,0.2,0,2,0,36.799999999999997,0,0,0,0,0,0,0,98.2,0,33.439998626708984,53.5,3283.808,7283.808,7500,null,"Allowables",98.2,null,null,null,null,null,null,null,null,null,null,null,null,null,null,null,null,null,null,null,null,null,null,null,null,null,null,null,null,null,null,null,null,null,null,null,null,null,null,null,null,null,null,null,null,null,null,null,null,null,null,null,null,null,null,null,null,null,null,null,null,null,null,null,null,null,null,null,null,null,null,null,null,117,"30-0190",12770.655999999999]
["59-0059","East Tennessee Natural Gas Company, Sta 3206","Non-EGU",1.1000000000000001,0,0.4,0,20,0,74.8,0,0,0,0,0,0,0,96.3,0,33.439998626708984,53.5,3220.2719999999995,7220.271999999999,7500,null,"Allowables",96.3,null,null,null,null,null,null,null,null,null,null,null,null,null,null,null,null,null,null,null,null,null,null,null,null,null,null,null,null,null,null,null,null,null,null,null,null,null,null,null,null,null,null,null,null,null,null,null,null,null,null,null,null,null,null,null,null,null,null,null,null,null,null,null,null,null,null,null,null,null,null,null,null,118,"05-0183",12765.712]
["59-0061","Calsonic Kansei North America, Inc.","Non-EGU",0,0.3,0,0,0,25,0,0,0,0,0,0,0,0,0,25.3,33.439998626708984,53.5,1353.55,5353.55,7500,null,"Actuals",25.3,null,null,null,null,null,null,null,null,null,null,null,null,null,null,null,null,null,null,null,null,null,null,null,null,null,null,null,null,null,null,null,null,null,null,null,null,null,null,null,null,null,null,null,null,null,null,null,null,null,null,null,null,null,null,null,null,null,null,null,null,null,null,null,null,null,null,null,null,null,null,null,null,119,"57-0020",12463.892000000002]
["59-0066","Trison Coatings Inc","Non-EGU",18,0,0,0,0,0.62,0,0,0,0,0,0,0,0,18,0.62,33.439998626708984,53.5,635.08999999999992,4635.09,7500,null,"Mixed",18.62,null,null,null,null,null,null,null,null,null,null,null,null,null,null,null,null,null,null,null,null,null,null,null,null,null,null,null,null,null,null,null,null,null,null,null,null,null,null,null,null,null,null,null,null,null,null,null,null,null,null,null,null,null,null,null,null,null,null,null,null,null,null,null,null,null,null,null,null,null,null,null,null,120,"90-0405",12434.464]
["59-0086","Cedar Ridge Landfill, Inc.","Non-EGU",0,0.9,0,1.2,0,4.9000000000000004,0,2.1,0,0,0,0,0,0,0,9.1,33.439998626708984,53.5,486.84999999999997,4486.8500000000004,7500,null,"Actuals",9.1,null,null,null,null,null,null,null,null,null,null,null,null,null,null,null,null,null,null,null,null,null,null,null,null,null,null,null,null,null,null,null,null,null,null,null,null,null,null,null,null,null,null,null,null,null,null,null,null,null,null,null,null,null,null,null,null,null,null,null,null,null,null,null,null,null,null,null,null,null,null,null,null,121,"60-0161",12355.359999999999]
["59-0133","Comfort Research ","Non-EGU",0,0,0,0,225,0,0,0,0,0,0,0,0,0,225,0,33.439998626708984,53.5,7523.9999999999991,11524,11524,null,"Allowables",225,null,null,null,null,null,null,null,null,null,null,null,null,null,null,null,null,null,null,null,null,null,null,null,null,null,null,null,null,null,null,null,null,null,null,null,null,null,null,null,null,null,null,null,null,null,null,null,null,null,null,null,null,null,null,null,null,null,null,null,null,null,null,null,null,null,null,null,null,null,null,null,null,122,"40-0024",12247.709000000001]
["60-0011","GrafTech Advanced Graphite Materials LLC","Non-EGU",696.5,0,125.2,0,114.8,0,56,0,0,0,10,0,0,0,1002.5,0,33.439998626708984,53.5,33523.599999999999,37523.599999999999,37523.599999999999,null,"Allowables",1002.5,null,null,null,null,null,null,null,null,null,null,null,null,null,null,null,null,null,null,null,null,null,null,null,null,null,null,null,null,null,null,null,null,null,null,null,null,null,null,null,null,null,null,null,null,null,null,null,null,null,null,null,null,null,null,null,null,null,null,null,null,null,null,null,null,null,null,null,null,null,null,null,null,123,"06-0014",12132.88]
["60-0066","American Redi-Bilt Inc dba Catamaran Cruisers","Non-EGU",36,0,0,0,25,0,0,0,0,0,0,0,0,0,61,0,33.439998626708984,53.5,2039.84,6039.84,7500,null,"Allowables",61,null,null,null,null,null,null,null,null,null,null,null,null,null,null,null,null,null,null,null,null,null,null,null,null,null,null,null,null,null,null,null,null,null,null,null,null,null,null,null,null,null,null,null,null,null,null,null,null,null,null,null,null,null,null,null,null,null,null,null,null,null,null,null,null,null,null,null,null,null,null,null,null,124,"63-0278",12068.608]
["60-0095","Columbia Gulf Transmission Company Hamps","Non-EGU",0,1.7,0,0,0,4.2,0,113.2,0,0,0,1.9,0,0,0,121.00000000000001,33.439998626708984,53.5,6473.5000000000009,10473.5,10473.5,null,"Actuals",121.00000000000001,null,null,null,null,null,null,null,null,null,null,null,null,null,null,null,null,null,null,null,null,null,null,null,null,null,null,null,null,null,null,null,null,null,null,null,null,null,null,null,null,null,null,null,null,null,null,null,null,null,null,null,null,null,null,null,null,null,null,null,null,null,null,null,null,null,null,null,null,null,null,null,null,125,"60-0095",11926.710000000003]
["60-0132","General Motors LLC - Spring Hill Manufacturing","Non-EGU",0,21.6,0,0.2,0,193.2,0,22.5,0,0,0,0,0,0,0,237.5,33.439998626708984,53.5,12706.25,16706.25,16706.25,null,"Actuals",237.5,null,null,null,null,null,null,null,null,null,null,null,null,null,null,null,null,null,null,null,null,null,null,null,null,null,null,null,null,null,null,null,null,null,null,null,null,null,null,null,null,null,null,null,null,null,null,null,null,null,null,null,null,null,null,null,null,null,null,null,null,null,null,null,null,null,null,null,null,null,null,null,null,126,"40-0033",11697.807999999999]
["60-0161","Swarco Industries Inc.","Non-EGU",0,0,0,0,169,0,0,0,0,0,0,0,0,0,169,0,33.439998626708984,53.5,5651.36,9651.36,9651.36,null,"Allowables",169,null,null,null,null,null,null,null,null,null,null,null,null,null,null,null,null,null,null,null,null,null,null,null,null,null,null,null,null,null,null,null,null,null,null,null,null,null,null,null,null,null,null,null,null,null,null,null,null,null,null,null,null,null,null,null,null,null,null,null,null,null,null,null,null,null,null,null,null,null,null,null,null,127,"76-0002",11631.203]
["60-0184","Sonoco Protective Solutions, Inc.","Non-EGU",0,1.3,0,0.1,0,14.9,0,6.8,0,0,0,0,0,0,0,23.1,33.439998626708984,53.5,1235.8500000000001,5235.8500000000004,7500,null,"Actuals",23.1,null,null,null,null,null,null,null,null,null,null,null,null,null,null,null,null,null,null,null,null,null,null,null,null,null,null,null,null,null,null,null,null,null,null,null,null,null,null,null,null,null,null,null,null,null,null,null,null,null,null,null,null,null,null,null,null,null,null,null,null,null,null,null,null,null,null,null,null,null,null,null,null,128,"71-0148",11618.4192]
["60-0200","Sekisui Plastics","Non-EGU",0,0,0,0,307,0,0,0,0,0,0,0,0,0,307,0,33.439998626708984,53.5,10266.08,14266.08,14266.08,null,"Allowables",{"$f":"SUM(R130:S130)","v":307},null,null,null,null,null,null,null,null,null,null,null,null,null,null,null,null,null,null,null,null,null,null,null,null,null,null,null,null,null,null,null,null,null,null,null,null,null,null,null,null,null,null,null,null,null,null,null,null,null,null,null,null,null,null,null,null,null,null,null,null,null,null,null,null,null,null,null,null,null,null,null,null,129,"37-0001",11559.854000000001]
["60-0272","UST, Inc.","Non-EGU",171,0,87.8,0,181.9,0,45,0,0,0,0,0,0,0,485.70000000000005,0,33.439998626708984,53.5,16241.808000000001,20241.808000000001,20241.808000000001,null,"Allowables",485.70000000000005,null,null,null,null,null,null,null,null,null,null,null,null,null,null,null,null,null,null,null,null,null,null,null,null,null,null,null,null,null,null,null,null,null,null,null,null,null,null,null,null,null,null,null,null,null,null,null,null,null,null,null,null,null,null,null,null,null,null,null,null,null,null,null,null,null,null,null,null,null,null,null,null,130,"90-0232",11514.88]
["62-0089","Sea Ray Inc Tellico Facility","Non-EGU",90.2,0,0,0,469,0,0,0,0,0,60,0,0,0,619.20000000000005,0,33.439998626708984,53.5,20706.047999999999,24706.047999999999,24706.047999999999,null,"Allowables",619.20000000000005,null,null,null,null,null,null,null,null,null,null,null,null,null,null,null,null,null,null,null,null,null,null,null,null,null,null,null,null,null,null,null,null,null,null,null,null,null,null,null,null,null,null,null,null,null,null,null,null,null,null,null,null,null,null,null,null,null,null,null,null,null,null,null,null,null,null,null,null,null,null,null,null,131,"11-0039",11346.784]
["62-0090","Havco Wood Products Inc","Non-EGU",259,0,1,0,97,0,156.1,0,7.5,0,0,0,7.5,0,528.1,0,33.439998626708984,53.5,17659.664000000001,21659.664000000001,21659.664000000001,null,"Allowables",528.1,null,null,null,null,null,null,null,null,null,null,null,null,null,null,null,null,null,null,null,null,null,null,null,null,null,null,null,null,null,null,null,null,null,null,null,null,null,null,null,null,null,null,null,null,null,null,null,null,null,null,null,null,null,null,null,null,null,null,null,null,null,null,null,null,null,null,null,null,null,null,null,null,132,"03-0045",11337.12]
["62-0096","Yamaha Jet Boat Manufacturing USA, Inc.","Non-EGU",0,11.3,0,0,0,208.7,0,0,0,0,0,0,0,0,0,220,33.439998626708984,53.5,11770,15770,15770,null,"Actuals",220,null,null,null,null,null,null,null,null,null,null,null,null,null,null,null,null,null,null,null,null,null,null,null,null,null,null,null,null,null,null,null,null,null,null,null,null,null,null,null,null,null,null,null,null,null,null,null,null,null,null,null,null,null,null,null,null,null,null,null,null,null,null,null,null,null,null,null,null,null,null,null,null,133,"30-0136",11331.951999999997]
["62-0102","Bryant Boats, LLC","Non-EGU",36,0,0,0,100,0,0,0,0,0,0,0,0,0,136,0,33.439998626708984,53.5,4547.84,8547.84,8547.84,null,"Allowables",136,null,null,null,null,null,null,null,null,null,null,null,null,null,null,null,null,null,null,null,null,null,null,null,null,null,null,null,null,null,null,null,null,null,null,null,null,null,null,null,null,null,null,null,null,null,null,null,null,null,null,null,null,null,null,null,null,null,null,null,null,null,null,null,null,null,null,null,null,null,null,null,null,134,"16-0010",11199.549000000001]
["62-0107","MasterCraft Boat Company","Non-EGU",0,17.899999999999999,0,0,0,158,0,0,0,0,0,0,0,0,0,175.9,33.439998626708984,53.5,9410.65,13410.65,13410.65,null,"Actuals",175.9,null,null,null,null,null,null,null,null,null,null,null,null,null,null,null,null,null,null,null,null,null,null,null,null,null,null,null,null,null,null,null,null,null,null,null,null,null,null,null,null,null,null,null,null,null,null,null,null,null,null,null,null,null,null,null,null,null,null,null,null,null,null,null,null,null,null,null,null,null,null,null,null,135,"22-0112",11077.04]
["62-0125","Mastermelt America, LLC","Non-EGU",60.5,0,99.9,0,61.1,0,5.0999999999999996,0,0,0,0,0,0,0,226.6,0,33.439998626708984,53.5,7577.503999999999,11577.503999999999,11577.503999999999,null,"Allowables",226.6,null,null,null,null,null,null,null,null,null,null,null,null,null,null,null,null,null,null,null,null,null,null,null,null,null,null,null,null,null,null,null,null,null,null,null,null,null,null,null,null,null,null,null,null,null,null,null,null,null,null,null,null,null,null,null,null,null,null,null,null,null,null,null,null,null,null,null,null,null,null,null,null,136,"06-0085",11069.92]
["62-0166","MacLean Power, LLC dba MacLean Highline","Non-EGU",7.6,0,0,0,38.799999999999997,0,0,0,0,0,0,0,0,0,46.4,0,33.439998626708984,53.5,1551.6159999999998,5551.616,7500,null,"Allowables",46.4,null,null,null,null,null,null,null,null,null,null,null,null,null,null,null,null,null,null,null,null,null,null,null,null,null,null,null,null,null,null,null,null,null,null,null,null,null,null,null,null,null,null,null,null,null,null,null,null,null,null,null,null,null,null,null,null,null,null,null,null,null,null,null,null,null,null,null,null,null,null,null,null,137,"32-0196",11030.186]
["62-0194","MasterCraft Boat Company - Trailer Shop","Non-EGU",29.4,0,0,0,26,0,0,0,0,0,0,0,0,0,55.4,0,33.439998626708984,53.5,1852.5759999999998,5852.576,7500,null,"Allowables",55.4,null,null,null,null,null,null,null,null,null,null,null,null,null,null,null,null,null,null,null,null,null,null,null,null,null,null,null,null,null,null,null,null,null,null,null,null,null,null,null,null,null,null,null,null,null,null,null,null,null,null,null,null,null,null,null,null,null,null,null,null,null,null,null,null,null,null,null,null,null,null,null,null,138,"35-0001",10966.095999999998]
["63-0092","Nyrstar Clarksville","Non-EGU",0,36.799999999999997,0,260.2,0,0,0,2.9,0,0.32,0,0,0,0,0,300.21999999999997,33.439998626708984,53.5,16061.769999999999,20061.769999999997,20061.769999999997,null,"Actuals",300.21999999999997,null,null,null,null,null,null,null,null,null,null,null,null,null,null,null,null,null,null,null,null,null,null,null,null,null,null,null,null,null,null,null,null,null,null,null,null,null,null,null,null,null,null,null,null,null,null,null,null,null,null,null,null,null,null,null,null,null,null,null,null,null,null,null,null,null,null,null,null,null,null,null,null,139,"15-0005",10738.672]
["63-0097","HQ, 101st Airborne Division and Fort Campbell","Non-EGU",0,0.7,0,0.3,0,0.7,0,6,0,0,0,0,0,2.5,0,10.199999999999999,33.439998626708984,53.5,545.69999999999993,4545.7,7500,null,"Actuals",10.199999999999999,null,null,null,null,null,null,null,null,null,null,null,null,null,null,null,null,null,null,null,null,null,null,null,null,null,null,null,null,null,null,null,null,null,null,null,null,null,null,null,null,null,null,null,null,null,null,null,null,null,null,null,null,null,null,null,null,null,null,null,null,null,null,null,null,null,null,null,null,null,null,null,null,140,"62-0102",10723.84]
["63-0123","Precision Printing and Packaging Inc dba Constantia Flexibles-Labels Division","Non-EGU",9,0,117,0,391,0,11,0,0,0,0,0,0,0,528,0,33.439998626708984,53.5,17656.32,21656.32,21656.32,null,"Allowables",528,null,null,null,null,null,null,null,null,null,null,null,null,null,null,null,null,null,null,null,null,null,null,null,null,null,null,null,null,null,null,null,null,null,null,null,null,null,null,null,null,null,null,null,null,null,null,null,null,null,null,null,null,null,null,null,null,null,null,null,null,null,null,null,null,null,null,null,null,null,null,null,null,141,"82-0052",10713.952000000001]
["63-0129","Bi-County Solid Waste Management System","Non-EGU",0,0,0,0,24.6,0,0,0,0,0,0,0,0,0,24.6,0,33.439998626708984,53.5,822.62400000000002,4822.6239999999998,7500,null,"Allowables",24.6,null,null,null,null,null,null,null,null,null,null,null,null,null,null,null,null,null,null,null,null,null,null,null,null,null,null,null,null,null,null,null,null,null,null,null,null,null,null,null,null,null,null,null,null,null,null,null,null,null,null,null,null,null,null,null,null,null,null,null,null,null,null,null,null,null,null,null,null,null,null,null,null,142,"90-0039",10623.061]
["63-0135","Florim USA Inc.","Non-EGU",116.1,0,167.2,0,122.4,0,116.8,0,14.6,0,9.6,0,14.6,0,561.29999999999995,0,33.439998626708984,53.5,18769.871999999996,22769.871999999996,22769.871999999996,null,"Allowables",561.29999999999995,null,null,null,null,null,null,null,null,null,null,null,null,null,null,null,null,null,null,null,null,null,null,null,null,null,null,null,null,null,null,null,null,null,null,null,null,null,null,null,null,null,null,null,null,null,null,null,null,null,null,null,null,null,null,null,null,null,null,null,null,null,null,null,null,null,null,null,null,null,null,null,null,143,"15-0020",10492.041000000001]
["63-0278","Bi County Gas Producers, LLC","Non-EGU",42.3,0,0,0,40.299999999999997,0,80.599999999999994,0,0,0,0,0,0,0,163.19999999999999,0,33.439998626708984,53.5,5457.4079999999994,9457.4079999999994,9457.4079999999994,null,"Allowables",163.19999999999999,null,null,null,null,null,null,null,null,null,null,null,null,null,null,null,null,null,null,null,null,null,null,null,null,null,null,null,null,null,null,null,null,null,null,null,null,null,null,null,null,null,null,null,null,null,null,null,null,null,null,null,null,null,null,null,null,null,null,null,null,null,null,null,null,null,null,null,null,null,null,null,null,144,"91-0075",10387.647999999999]
["64-0001","Jack Daniel Distillery, Lem Motlow Proprietor, Inc.","Non-EGU",79.099999999999994,5.0999999999999996,1.8,3.6,8.3000000000000007,661.7,36.5,72.400000000000006,0,0,0,0,0,0,125.69999999999999,742.80000000000007,33.439998626708984,53.5,43943.207999999999,47943.207999999999,47943.207999999999,null,"Mixed",868.5,null,null,null,null,null,null,null,null,null,null,null,null,null,null,null,null,null,null,null,null,null,null,null,null,null,null,null,null,null,null,null,null,null,null,null,null,null,null,null,null,null,null,null,null,null,null,null,null,null,null,null,null,null,null,null,null,null,null,null,null,null,null,null,null,null,null,null,null,null,null,null,null,145,"01-0170",10282.409]
["64-0013","Jack Daniel Distillery, Lem Motlow Proprietor","Non-EGU",6.4,0,0,90,4000,0,65.599999999999994,0,0,0,0,0,0,0,4072,90,33.439998626708984,53.5,140982.68,144982.68,144982.68,null,"Mixed",4162,null,null,null,null,null,null,null,null,null,null,null,null,null,null,null,null,null,null,null,null,null,null,null,null,null,null,null,null,null,null,null,null,null,null,null,null,null,null,null,null,null,null,null,null,null,null,null,null,null,null,null,null,null,null,null,null,null,null,null,null,null,null,null,null,null,null,null,null,null,null,null,null,146,"50-0054",10218.116040000001]
["65-0049","Heraeus Metal Processing, LLC","Non-EGU",60.6,0,5.3,0,0.6,0,20.8,0,0,0,0,0,0,0,87.3,0,33.439998626708984,53.5,2919.3119999999999,6919.3119999999999,7500,null,"Allowables",87.3,null,null,null,null,null,null,null,null,null,null,null,null,null,null,null,null,null,null,null,null,null,null,null,null,null,null,null,null,null,null,null,null,null,null,null,null,null,null,null,null,null,null,null,null,null,null,null,null,null,null,null,null,null,null,null,null,null,null,null,null,null,null,null,null,null,null,null,null,null,null,null,null,147,"72-0116",10060.985199999999]
["66-0012","Titan Tire Corporation Of Union City","Non-EGU",0,0.8,0,0.1,0,8.1999999999999993,0,30.3,0,0,0,0,0,0,0,39.4,33.439998626708984,53.5,2107.9,6107.9,7500,null,"Actuals",39.4,null,null,null,null,null,null,null,null,null,null,null,null,null,null,null,null,null,null,null,null,null,null,null,null,null,null,null,null,null,null,null,null,null,null,null,null,null,null,null,null,null,null,null,null,null,null,null,null,null,null,null,null,null,null,null,null,null,null,null,null,null,null,null,null,null,null,null,null,null,null,null,null,148,"78-0086",9947.6320000000014]
["66-0101","Texas Gas Transmission, Llc - Kenton Comp Sta","Non-EGU",0,1.2,0,0.1,0,5.5,0,194.6,0,0,0,0,0,0,0,201.4,33.439998626708984,53.5,10774.9,14774.9,14774.9,null,"Actuals",201.4,null,null,null,null,null,null,null,null,null,null,null,null,null,null,null,null,null,null,null,null,null,null,null,null,null,null,null,null,null,null,null,null,null,null,null,null,null,null,null,null,null,null,null,null,null,null,null,null,null,null,null,null,null,null,null,null,null,null,null,null,null,null,null,null,null,null,null,null,null,null,null,null,149,"75-0381",9817.2880000000005]
["66-0113","Northwest Tennessee Disposal Corp.","Non-EGU",0,20.5,0,1.9,0,0.9,0,8.3000000000000007,0,0,0,0.6,0,0.9,0,33.099999999999994,33.439998626708984,53.5,1770.8499999999997,5770.8499999999995,7500,null,"Actuals",33.099999999999994,null,null,null,null,null,null,null,null,null,null,null,null,null,null,null,null,null,null,null,null,null,null,null,null,null,null,null,null,null,null,null,null,null,null,null,null,null,null,null,null,null,null,null,null,null,null,null,null,null,null,null,null,null,null,null,null,null,null,null,null,null,null,null,null,null,null,null,null,null,null,null,null,150,"43-0003",9275.2479999999996]
["66-0123","Green Plains Obion, LLC","Non-EGU",50.9,0,97.2,0,119.3,0,152.9,0,0,0,0,0,0,0,420.29999999999995,0,33.439998626708984,53.5,14054.831999999997,18054.831999999995,18054.831999999995,null,"Allowables",420.29999999999995,null,null,null,null,null,null,null,null,null,null,null,null,null,null,null,null,null,null,null,null,null,null,null,null,null,null,null,null,null,null,null,null,null,null,null,null,null,null,null,null,null,null,null,null,null,null,null,null,null,null,null,null,null,null,null,null,null,null,null,null,null,null,null,null,null,null,null,null,null,null,null,null,151,"30-0165",9270.3040000000001]
["67-0054","ABC - Inoac Exterior Systems LLC","Non-EGU",81.900000000000006,0,2.2000000000000002,0,245.2,0,11,0,0,0,0,0,0,0,340.3,0,33.439998626708984,53.5,11379.632,15379.632,15379.632,null,"Allowables",340.3,null,null,null,null,null,null,null,null,null,null,null,null,null,null,null,null,null,null,null,null,null,null,null,null,null,null,null,null,null,null,null,null,null,null,null,null,null,null,null,null,null,null,null,null,null,null,null,null,null,null,null,null,null,null,null,null,null,null,null,null,null,null,null,null,null,null,null,null,null,null,null,null,152,"57-0221",9240.8000000000011]
["68-0001","Tennessee Gas Pipeline Company LLC - Compressor Station 79","Non-EGU",0,0,0,0,0,0.1,0,2,0,0,0,0,0,0,0,2.1,33.439998626708984,53.5,112.35000000000001,4112.3500000000004,7500,null,"Actuals",2.1,null,null,null,null,null,null,null,null,null,null,null,null,null,null,null,null,null,null,null,null,null,null,null,null,null,null,null,null,null,null,null,null,null,null,null,null,null,null,null,null,null,null,null,null,null,null,null,null,null,null,null,null,null,null,null,null,null,null,null,null,null,null,null,null,null,null,null,null,null,null,null,null,153,"73-0137",9008.2720000000008]
["71-0020","Cummins Filtration","Non-EGU",46.3,0,4.4000000000000004,0,186.2,0,30,0,0,0,0,0,0,0,266.89999999999998,0,33.439998626708984,53.5,8925.1359999999986,12925.135999999999,12925.135999999999,null,"Allowables",266.89999999999998,null,null,null,null,null,null,null,null,null,null,null,null,null,null,null,null,null,null,null,null,null,null,null,null,null,null,null,null,null,null,null,null,null,null,null,null,null,null,null,null,null,null,null,null,null,null,null,null,null,null,null,null,null,null,null,null,null,null,null,null,null,null,null,null,null,null,null,null,null,null,null,null,154,"28-0091",8978.6080000000002]
["71-0035","Tennessee Technological University ","Non-EGU",0,1.4,0,0.1,0,0.9,0,12.3,0,0,0,0,0,0,0,14.700000000000001,33.439998626708984,53.5,786.45,4786.45,7500,null,"Actuals",14.700000000000001,null,null,null,null,null,null,null,null,null,null,null,null,null,null,null,null,null,null,null,null,null,null,null,null,null,null,null,null,null,null,null,null,null,null,null,null,null,null,null,null,null,null,null,null,null,null,null,null,null,null,null,null,null,null,null,null,null,null,null,null,null,null,null,null,null,null,null,null,null,null,null,null,155,"85-0027",8868.4920000000002]
["71-0148","East Tennessee Natural Gas Company - Station 3107","Non-EGU",11.7,0,1.9,0,0.03,4.7,1.6,100.1,0,0,0,0,0,0,15.229999999999999,104.8,33.439998626708984,53.5,6116.0911999999998,10116.091199999999,10116.091199999999,null,"Mixed",120.03,null,null,null,null,null,null,null,null,null,null,null,null,null,null,null,null,null,null,null,null,null,null,null,null,null,null,null,null,null,null,null,null,null,null,null,null,null,null,null,null,null,null,null,null,null,null,null,null,null,null,null,null,null,null,null,null,null,null,null,null,null,null,null,null,null,null,null,null,null,null,null,null,156,"57-0286",8855.0079999999998]
["72-0049","La-Z-Boy Tennessee","Non-EGU",233,0,8.9,0,22.8,29.44,95.7,0,0,0,0,0,0,0,360.4,29.44,33.439998626708984,53.5,13626.815999999999,17626.815999999999,17626.815999999999,null,"Mixed",389.84,null,null,null,null,null,null,null,null,null,null,null,null,null,null,null,null,null,null,null,null,null,null,null,null,null,null,null,null,null,null,null,null,null,null,null,null,null,null,null,null,null,null,null,null,null,null,null,null,null,null,null,null,null,null,null,null,null,null,null,null,null,null,null,null,null,null,null,null,null,null,null,null,157,"59-0059",8761.0720000000001]
["72-0107","Huber Engineered Woods, LLC","Non-EGU",146.88,0,18.419999999999998,0,108.41999999999999,0,146.4,0,0,0,0,0,0,0,420.12,0,33.439998626708984,53.5,14048.8128,18048.8128,18048.8128,null,"Allowables",420.12,null,null,null,null,null,null,null,null,null,null,null,null,null,null,null,null,null,null,null,null,null,null,null,null,null,null,null,null,null,null,null,null,null,null,null,null,null,null,null,null,null,null,null,null,null,null,null,null,null,null,null,null,null,null,null,null,null,null,null,null,null,null,null,null,null,null,null,null,null,null,null,null,158,"82-0481",8696.7999999999993]
["72-0109","Rhea County Landfill/Santek Environmental","Non-EGU",0,0,0,0,0,14.09,0,0,0,0,0,0,0,12.53,0,26.619999999999997,33.439998626708984,53.5,1424.1699999999998,5424.17,7500,null,"Actuals",26.619999999999997,null,null,null,null,null,null,null,null,null,null,null,null,null,null,null,null,null,null,null,null,null,null,null,null,null,null,null,null,null,null,null,null,null,null,null,null,null,null,null,null,null,null,null,null,null,null,null,null,null,null,null,null,null,null,null,null,null,null,null,null,null,null,null,null,null,null,null,null,null,null,null,null,159,"92-0052",8477.6085000000021]
["72-0116","General Shale Brick - Plant 42","Non-EGU",0,6,0,49.6,0,1.7,0,35.200000000000003,0,0.02,0,0,0,0,0,92.52,33.439998626708984,53.5,4949.82,8949.82,8949.82,null,"Actuals",92.52,null,null,null,null,null,null,null,null,null,null,null,null,null,null,null,null,null,null,null,null,null,null,null,null,null,null,null,null,null,null,null,null,null,null,null,null,null,null,null,null,null,null,null,null,null,null,null,null,null,null,null,null,null,null,null,null,null,null,null,null,null,null,null,null,null,null,null,null,null,null,null,null,160,"65-0049",8316.112000000001]
["73-0013","Tennessee Valley Authority (TVA) - Kingston Fossil Plant","EGU",0,194,0,1823,224.3,0,0,1545,209,0,0,0,0,0,433.3,3562,46.819999694824219,74.910003662109375,287116.52599999995,291116.52599999995,291116.52599999995,null,"Mixed",3995.3,null,null,null,null,null,null,null,null,null,null,null,null,null,null,null,null,null,null,null,null,null,null,null,null,null,null,null,null,null,null,null,null,null,null,null,null,null,null,null,null,null,null,null,null,null,null,null,null,null,null,null,null,null,null,null,null,null,null,null,null,null,null,null,null,null,null,null,null,null,null,null,null,161,"54-0188",8258.1500000000015]
["73-0107","Horsehead Corporation","Non-EGU",77.2,0,4.4000000000000004,0,98.5,0,0,0,2.4,0,3.2,0,2.4,0,188.10000000000002,0,33.439998626708984,53.5,6290.0640000000003,10290.064,10290.064,null,"Allowables",188.10000000000002,null,null,null,null,null,null,null,null,null,null,null,null,null,null,null,null,null,null,null,null,null,null,null,null,null,null,null,null,null,null,null,null,null,null,null,null,null,null,null,null,null,null,null,null,null,null,null,null,null,null,null,null,null,null,null,null,null,null,null,null,null,null,null,null,null,null,null,null,null,null,null,null,162,"93-0067",8009.5839999999989]
["73-0112","US Department of Energy, Oak Ridge National Laboratory (Office of Science)","Non-EGU",20,0,0,0,0,0,0,0,0,0,0,0,0,0,20,0,33.439998626708984,53.5,668.8,4668.8,7500,null,"Allowables",20,null,null,null,null,null,null,null,null,null,null,null,null,null,null,null,null,null,null,null,null,null,null,null,null,null,null,null,null,null,null,null,null,null,null,null,null,null,null,null,null,null,null,null,null,null,null,null,null,null,null,null,null,null,null,null,null,null,null,null,null,null,null,null,null,null,null,null,null,null,null,null,null,163,"78-0028",7960.1440000000002]
["73-0125","Toho Tenax America, Inc.","Non-EGU",44.4,0,14.1,0,177,0,199.2,0,143,0,0,0,143,0,720.7,0,33.439998626708984,53.5,24100.207999999999,28100.207999999999,28100.207999999999,null,"Allowables",720.7,null,null,null,null,null,null,null,null,null,null,null,null,null,null,null,null,null,null,null,null,null,null,null,null,null,null,null,null,null,null,null,null,null,null,null,null,null,null,null,null,null,null,null,null,null,null,null,null,null,null,null,null,null,null,null,null,null,null,null,null,null,null,null,null,null,null,null,null,null,null,null,null,164,"24-0080",7534.96]
["73-0137","Diversified Scientific Services, Inc","Non-EGU",12.8,0,21.9,0,15,0,39,0,6.3,0,0,0,6.3,0,101.3,0,33.439998626708984,53.5,3387.4719999999998,7387.4719999999998,7500,null,"Allowables",101.3,null,null,null,null,null,null,null,null,null,null,null,null,null,null,null,null,null,null,null,null,null,null,null,null,null,null,null,null,null,null,null,null,null,null,null,null,null,null,null,null,null,null,null,null,null,null,null,null,null,null,null,null,null,null,null,null,null,null,null,null,null,null,null,null,null,null,null,null,null,null,null,null,165,"02-0081",7500]
["73-0182","Isotek, LLC dba US DOE, Oak Ridge National Laboratory","Non-EGU",31.1,0,0,0,0.1,0,1.4,0,0,0,0,0,0,0,32.6,0,33.439998626708984,53.5,1090.144,5090.1440000000002,7500,null,"Allowables",32.6,null,null,null,null,null,null,null,null,null,null,null,null,null,null,null,null,null,null,null,null,null,null,null,null,null,null,null,null,null,null,null,null,null,null,null,null,null,null,null,null,null,null,null,null,null,null,null,null,null,null,null,null,null,null,null,null,null,null,null,null,null,null,null,null,null,null,null,null,null,null,null,null,166,"05-0011",7500]
["74-0091","Hinkle Chair Company","Non-EGU",0,0.7,0,0,0,34.9,0,0,0,0,0,0,0,0,0,35.6,33.439998626708984,53.5,1904.6000000000001,5904.6,7500,null,"Actuals",35.6,null,null,null,null,null,null,null,null,null,null,null,null,null,null,null,null,null,null,null,null,null,null,null,null,null,null,null,null,null,null,null,null,null,null,null,null,null,null,null,null,null,null,null,null,null,null,null,null,null,null,null,null,null,null,null,null,null,null,null,null,null,null,null,null,null,null,null,null,null,null,null,null,167,"06-0205",7500]
["74-0102","Drew Foam Companies Inc.","Non-EGU",0,0,0,0,240,0,2.1,0,0,0,0,0,0,0,242.1,0,33.439998626708984,53.5,8095.8239999999996,12095.824000000001,12095.824000000001,null,"Allowables",242.1,null,null,null,null,null,null,null,null,null,null,null,null,null,null,null,null,null,null,null,null,null,null,null,null,null,null,null,null,null,null,null,null,null,null,null,null,null,null,null,null,null,null,null,null,null,null,null,null,null,null,null,null,null,null,null,null,null,null,null,null,null,null,null,null,null,null,null,null,null,null,null,null,168,"16-0123",7500]
["75-0057","Bridgestone Firestone North American Tire Llc","Non-EGU",60.6,0,0.7,0,467.6,0,112.9,0,0,0,0,0,0,0,641.79999999999995,0,33.439998626708984,53.5,21461.791999999998,25461.791999999998,25461.791999999998,null,"Allowables",641.79999999999995,null,null,null,null,null,null,null,null,null,null,null,null,null,null,null,null,null,null,null,null,null,null,null,null,null,null,null,null,null,null,null,null,null,null,null,null,null,null,null,null,null,null,null,null,null,null,null,null,null,null,null,null,null,null,null,null,null,null,null,null,null,null,null,null,null,null,null,null,null,null,null,null,169,"20-0052",7500]
["75-0155","Nissan North America, Inc. - Smyrna","Non-EGU",102.39,5.5,0,0.6,6.1,1619,0,51.8,0,0,0,0,0,0,108.49,1676.8999999999999,33.439998626708984,53.5,93342.055599999992,97342.055599999992,97342.055599999992,null,"Mixed",1785.3899999999999,null,null,null,null,null,null,null,null,null,null,null,null,null,null,null,null,null,null,null,null,null,null,null,null,null,null,null,null,null,null,null,null,null,null,null,null,null,null,null,null,null,null,null,null,null,null,null,null,null,null,null,null,null,null,null,null,null,null,null,null,null,null,null,null,null,null,null,null,null,null,null,null,170,"22-0055",7500]
["75-0212","Nashville Marble & Whirlpool Bath Co","Non-EGU",9.6999999999999993,0,0,0,19.5,0,0,0,0,0,0,0,0,0,29.2,0,33.439998626708984,53.5,976.44799999999987,4976.4480000000003,7500,null,"Allowables",29.2,null,null,null,null,null,null,null,null,null,null,null,null,null,null,null,null,null,null,null,null,null,null,null,null,null,null,null,null,null,null,null,null,null,null,null,null,null,null,null,null,null,null,null,null,null,null,null,null,null,null,null,null,null,null,null,null,null,null,null,null,null,null,null,null,null,null,null,null,null,null,null,null,171,"26-0131",7500]
["75-0381","BFI Waste Systems of North America, Inc. dba Middle Point Landfill","Non-EGU",0,0,0,0,0,21.1,0,0,0,0,0,0,0,67.7,0,88.800000000000011,33.439998626708984,53.5,4750.8,8750.7999999999993,8750.7999999999993,null,"Actuals",88.800000000000011,null,null,null,null,null,null,null,null,null,null,null,null,null,null,null,null,null,null,null,null,null,null,null,null,null,null,null,null,null,null,null,null,null,null,null,null,null,null,null,null,null,null,null,null,null,null,null,null,null,null,null,null,null,null,null,null,null,null,null,null,null,null,null,null,null,null,null,null,null,null,null,null,172,"32-0275",7500]
["76-0002","Armstrong Hardwood Flooring Company","Non-EGU",0,7.7,0,0,144.15,0,0,0,0,0,0,0,0,0,144.15,7.7,33.439998626708984,53.5,5232.326,9232.3260000000009,9232.3260000000009,null,"Mixed",151.85,null,null,null,null,null,null,null,null,null,null,null,null,null,null,null,null,null,null,null,null,null,null,null,null,null,null,null,null,null,null,null,null,null,null,null,null,null,null,null,null,null,null,null,null,null,null,null,null,null,null,null,null,null,null,null,null,null,null,null,null,null,null,null,null,null,null,null,null,null,null,null,null,173,"34-0014",7500]
["76-0071","Volunteer Regional Landfill Scott Solid","Non-EGU",0,137.5,0,0.5,0,4.5,0,3.3,0,0,0,2.4,0,0,0,148.20000000000002,33.439998626708984,53.5,7928.7000000000007,11928.7,11928.7,null,"Actuals",148.20000000000002,null,null,null,null,null,null,null,null,null,null,null,null,null,null,null,null,null,null,null,null,null,null,null,null,null,null,null,null,null,null,null,null,null,null,null,null,null,null,null,null,null,null,null,null,null,null,null,null,null,null,null,null,null,null,null,null,null,null,null,null,null,null,null,null,null,null,null,null,null,null,null,null,174,"36-0061",7500]
["78-0028","Johnson Matthey, Inc.","Non-EGU",71.599999999999994,0,1.4,0,0.7,0,6.4,0,0,0,0,0,0,0,80.100000000000009,0,33.439998626708984,53.5,2678.5440000000003,6678.5439999999999,7500,null,"Allowables",80.100000000000009,null,null,null,null,null,null,null,null,null,null,null,null,null,null,null,null,null,null,null,null,null,null,null,null,null,null,null,null,null,null,null,null,null,null,null,null,null,null,null,null,null,null,null,null,null,null,null,null,null,null,null,null,null,null,null,null,null,null,null,null,null,null,null,null,null,null,null,null,null,null,null,null,175,"37-0080",7500]
["78-0086","East Tennessee Natural Gas","Non-EGU",3.1,0,2.6,0,6.9,0,107.7,0,0,0,0,0,0,0,120.30000000000001,0,33.439998626708984,53.5,4022.8319999999999,8022.8320000000003,8022.8320000000003,null,"Allowables",120.30000000000001,null,null,null,null,null,null,null,null,null,null,null,null,null,null,null,null,null,null,null,null,null,null,null,null,null,null,null,null,null,null,null,null,null,null,null,null,null,null,null,null,null,null,null,null,null,null,null,null,null,null,null,null,null,null,null,null,null,null,null,null,null,null,null,null,null,null,null,null,null,null,null,null,176,"38-0053",7500]
["80-0009","Bon L Manufacturing Company","Non-EGU",0,16.399999999999999,0,0.1,0,16.399999999999999,0,17.2,0,0,0,3.1,0,0,0,53.199999999999996,33.439998626708984,53.5,2846.2,6846.2,7500,null,"Actuals",53.199999999999996,null,null,null,null,null,null,null,null,null,null,null,null,null,null,null,null,null,null,null,null,null,null,null,null,null,null,null,null,null,null,null,null,null,null,null,null,null,null,null,null,null,null,null,null,null,null,null,null,null,null,null,null,null,null,null,null,null,null,null,null,null,null,null,null,null,null,null,null,null,null,null,null,177,"40-0102",7500]
["81-0011","TVA - Cumberland Steam Plant","EGU",0,330,4000,0,209,0,4000,0,0,144,0,0,0,0,8209,474,46.819999694824219,74.910003662109375,419852.72,423852.72,423852.72,null,"Mixed",8683,null,null,null,null,null,null,null,null,null,null,null,null,null,null,null,null,null,null,null,null,null,null,null,null,null,null,null,null,null,null,null,null,null,null,null,null,null,null,null,null,null,null,null,null,null,null,null,null,null,null,null,null,null,null,null,null,null,null,null,null,null,null,null,null,null,null,null,null,null,null,null,null,178,"40-0107",7500]
["81-0030","Georgia-Pacific Gypsum LLC","Non-EGU",147.30000000000001,0,1.4,0,63.6,0,112.2,0,0,0,0,0,0,0,324.5,0,33.439998626708984,53.5,10851.279999999999,14851.279999999999,14851.279999999999,null,"Allowables",324.5,null,null,null,null,null,null,null,null,null,null,null,null,null,null,null,null,null,null,null,null,null,null,null,null,null,null,null,null,null,null,null,null,null,null,null,null,null,null,null,null,null,null,null,null,null,null,null,null,null,null,null,null,null,null,null,null,null,null,null,null,null,null,null,null,null,null,null,null,null,null,null,null,179,"45-0101",7500]
["82-0003","Eastman Chemical Company","Non-EGU",612,162,4000,0,4000,0,4000,0,1740,31,0,0,0,0,14352,193,33.439998626708984,53.5,490256.37999999995,494256.37999999995,494256.37999999995,null,"Mixed",14545,null,null,null,null,null,null,null,null,null,null,null,null,null,null,null,null,null,null,null,null,null,null,null,null,null,null,null,null,null,null,null,null,null,null,null,null,null,null,null,null,null,null,null,null,null,null,null,null,null,null,null,null,null,null,null,null,null,null,null,null,null,null,null,null,null,null,null,null,null,null,null,null,180,"47-0018",7500]
["82-0007","Seaman Corporation","Non-EGU",0,0.2,0,0,0,35.9,0,2.8,0.18,0,0,0,0,0,0.18,38.9,33.439998626708984,53.5,2087.1692000000003,6087.1692000000003,7500,null,"Mixed",39.08,null,null,null,null,null,null,null,null,null,null,null,null,null,null,null,null,null,null,null,null,null,null,null,null,null,null,null,null,null,null,null,null,null,null,null,null,null,null,null,null,null,null,null,null,null,null,null,null,null,null,null,null,null,null,null,null,null,null,null,null,null,null,null,null,null,null,null,null,null,null,null,null,181,"51-0031A",7500]
["82-0022","Domtar Paper Company, LLC","Non-EGU",154.6,19,27.3,33.799999999999997,71.8,39.299999999999997,706.5,239.8,0,1.44,0,0,"9.8",4.8,970,338.14,33.439998626708984,53.5,50527.289999999994,54527.289999999994,54527.289999999994,null,"Mixed",1308.1399999999999,null,null,null,null,null,null,null,null,null,null,null,null,null,null,null,null,null,null,null,null,null,null,null,null,null,null,null,null,null,null,null,null,null,null,null,null,null,null,null,null,null,null,null,null,null,null,null,null,null,null,null,null,null,null,null,null,null,null,null,null,null,null,null,null,null,null,null,null,null,null,null,null,182,"51-0031B",7500]
["82-0041","Charis Holding, LLC","Non-EGU",143.30000000000001,0,173.5,0,45,0,371,0,0,0,0,0,0,0,732.8,0,33.439998626708984,53.5,24504.831999999999,28504.831999999999,28504.831999999999,null,"Allowables",732.8,null,null,null,null,null,null,null,null,null,null,null,null,null,null,null,null,null,null,null,null,null,null,null,null,null,null,null,null,null,null,null,null,null,null,null,null,null,null,null,null,null,null,null,null,null,null,null,null,null,null,null,null,null,null,null,null,null,null,null,null,null,null,null,null,null,null,null,null,null,null,null,null,183,"53-0110",7500]
["82-0052","UPM Pharmaceuticals, Inc.","Non-EGU",29.5,0,4.4000000000000004,0,70.599999999999994,0,11.5,0,9.9,0,0,0,9.9,0,135.80000000000001,0,33.439998626708984,53.5,4541.152,8541.152,8541.152,null,"Allowables",135.80000000000001,null,null,null,null,null,null,null,null,null,null,null,null,null,null,null,null,null,null,null,null,null,null,null,null,null,null,null,null,null,null,null,null,null,null,null,null,null,null,null,null,null,null,null,null,null,null,null,null,null,null,null,null,null,null,null,null,null,null,null,null,null,null,null,null,null,null,null,null,null,null,null,null,184,"54-0176",7500]
["82-0110","East Tennessee Natural Gas Station 3308","Non-EGU",0,1.49,0,0,0,3.8,0,22.47,0,0,0,0,0,0,0,27.759999999999998,33.439998626708984,53.5,1485.1599999999999,5485.16,7500,null,"Actuals",27.759999999999998,null,null,null,null,null,null,null,null,null,null,null,null,null,null,null,null,null,null,null,null,null,null,null,null,null,null,null,null,null,null,null,null,null,null,null,null,null,null,null,null,null,null,null,null,null,null,null,null,null,null,null,null,null,null,null,null,null,null,null,null,null,null,null,null,null,null,null,null,null,null,null,null,185,"56-0004",7500]
["82-0153","Microporous, LLC","Non-EGU",59,0,0.4,0,1.7,0,30.3,0,80,0,0,0,80,0,251.4,0,33.439998626708984,53.5,8406.8159999999989,12406.815999999999,12406.815999999999,null,"Allowables",251.4,null,null,null,null,null,null,null,null,null,null,null,null,null,null,null,null,null,null,null,null,null,null,null,null,null,null,null,null,null,null,null,null,null,null,null,null,null,null,null,null,null,null,null,null,null,null,null,null,null,null,null,null,null,null,null,null,null,null,null,null,null,null,null,null,null,null,null,null,null,null,null,null,186,"57-0259",7500]
["82-0315","Aurora Hardwoods, Incorporated","Non-EGU",185.2,0,1.5,0,249.9,0,30,0,0,0,0,0,0,0,466.6,0,33.439998626708984,53.5,15603.103999999999,19603.103999999999,19603.103999999999,null,"Allowables",466.6,null,null,null,null,null,null,null,null,null,null,null,null,null,null,null,null,null,null,null,null,null,null,null,null,null,null,null,null,null,null,null,null,null,null,null,null,null,null,null,null,null,null,null,null,null,null,null,null,null,null,null,null,null,null,null,null,null,null,null,null,null,null,null,null,null,null,null,null,null,null,null,null,187,"59-0061",7500]
["82-0433","Leisure Products, Inc. ","Non-EGU",27.3,20.2,0,0,99.5,46.1,0,0,0,0,0,0,0,0,126.8,66.3,33.439998626708984,53.5,7787.2420000000002,11787.242,11787.242,null,"Mixed",193.1,null,null,null,null,null,null,null,null,null,null,null,null,null,null,null,null,null,null,null,null,null,null,null,null,null,null,null,null,null,null,null,null,null,null,null,null,null,null,null,null,null,null,null,null,null,null,null,null,null,null,null,null,null,null,null,null,null,null,null,null,null,null,null,null,null,null,null,null,null,null,null,null,188,"59-0066",7500]
["82-0481","EcoSafe Systems, LLC dba Eco-Safe Landfill ","Non-EGU",20,0,20,0,25,0,30,0,0,0,0,0,0,0,95,0,33.439998626708984,53.5,3176.7999999999997,7176.7999999999993,7500,null,"Allowables",95,null,null,null,null,null,null,null,null,null,null,null,null,null,null,null,null,null,null,null,null,null,null,null,null,null,null,null,null,null,null,null,null,null,null,null,null,null,null,null,null,null,null,null,null,null,null,null,null,null,null,null,null,null,null,null,null,null,null,null,null,null,null,null,null,null,null,null,null,null,null,null,null,189,"59-0086",7500]
["82-0510","Solvay USA Inc., dba Primester","Non-EGU",7.1,0,1.1000000000000001,0,43.1,0,0,0,0,0,0,0,0,0,51.3,0,33.439998626708984,53.5,1715.4719999999998,5715.4719999999998,7500,null,"Allowables",51.3,null,null,null,null,null,null,null,null,null,null,null,null,null,null,null,null,null,null,null,null,null,null,null,null,null,null,null,null,null,null,null,null,null,null,null,null,null,null,null,null,null,null,null,null,null,null,null,null,null,null,null,null,null,null,null,null,null,null,null,null,null,null,null,null,null,null,null,null,null,null,null,null,190,"60-0066",7500]
["83-0008","Tennessee Gas Pipeline Company, LLC - Compressor Station 87","Non-EGU",0,24.57,0,0.4,0,78.83,0,974.06,0,0,0,0.1,0,0,0,1077.9599999999998,33.439998626708984,53.5,57670.859999999993,61670.859999999993,61670.859999999993,null,"Actuals",1077.9599999999998,null,null,null,null,null,null,null,null,null,null,null,null,null,null,null,null,null,null,null,null,null,null,null,null,null,null,null,null,null,null,null,null,null,null,null,null,null,null,null,null,null,null,null,null,null,null,null,null,null,null,null,null,null,null,null,null,null,null,null,null,null,null,null,null,null,null,null,null,null,null,null,null,191,"60-0184",7500]
["83-0014","Midwestern Gas Transmission Company dba MGT - Portland Compressor Station (2101)","Non-EGU",5.0999999999999996,0,2.8,0,0,16.7,0,375.6,0,0,0,0,0,0,7.8999999999999995,392.3,33.439998626708984,53.5,21252.225999999999,25252.225999999999,25252.225999999999,null,"Mixed",400.2,null,null,null,null,null,null,null,null,null,null,null,null,null,null,null,null,null,null,null,null,null,null,null,null,null,null,null,null,null,null,null,null,null,null,null,null,null,null,null,null,null,null,null,null,null,null,null,null,null,null,null,null,null,null,null,null,null,null,null,null,null,null,null,null,null,null,null,null,null,null,null,null,192,"62-0166",7500]
["83-0025","Tennessee Valley Authority - Gallatin Fossil Plant","EGU",0,197,0,1404,0,172,0,951.05,0,123,0,0,0,0,0,2847.05,46.819999694824219,74.910003662109375,213272.51550000001,217272.51550000001,217272.51550000001,null,"Actuals",{"$f":"SUM(R194:S194)","v":2847.05},null,null,null,null,null,null,null,null,null,null,null,null,null,null,null,null,null,null,null,null,null,null,null,null,null,null,null,null,null,null,null,null,null,null,null,null,null,null,null,null,null,null,null,null,null,null,null,null,null,null,null,null,null,null,null,null,null,null,null,null,null,null,null,null,null,null,null,null,null,null,null,null,193,"62-0194",7500]
["83-0129","Hoeganaes Corporation","Non-EGU",155.5,0,106.9,0,46.8,0,272.5,0,8.5,0,0,0,8.5,0,598.70000000000005,0,33.439998626708984,53.5,20020.527999999998,24020.527999999998,24020.527999999998,null,"Allowables",598.70000000000005,null,null,null,null,null,null,null,null,null,null,null,null,null,null,null,null,null,null,null,null,null,null,null,null,null,null,null,null,null,null,null,null,null,null,null,null,null,null,null,null,null,null,null,null,null,null,null,null,null,null,null,null,null,null,null,null,null,null,null,null,null,null,null,null,null,null,null,null,null,null,null,null,194,"63-0097",7500]
["84-0067","Texas Gas Transmission Llc","Non-EGU",0,0.2,0,0,0,0.4,0,3.1,0,0,0,0,0,0,0,3.7,33.439998626708984,53.5,197.95000000000002,4197.95,7500,null,"Actuals",3.7,null,null,null,null,null,null,null,null,null,null,null,null,null,null,null,null,null,null,null,null,null,null,null,null,null,null,null,null,null,null,null,null,null,null,null,null,null,null,null,null,null,null,null,null,null,null,null,null,null,null,null,null,null,null,null,null,null,null,null,null,null,null,null,null,null,null,null,null,null,null,null,null,195,"63-0129",7500]
["85-0027","East Tennessee Natural Gas Company, Sta 3104","Non-EGU",2.7,0,1.1000000000000001,0,0.1,1.4,5,66.2,0,0,0,0,0,0,8.9,67.600000000000009,33.439998626708984,53.5,3914.2160000000003,7914.2160000000003,7914.2160000000003,null,"Mixed",76.500000000000014,null,null,null,null,null,null,null,null,null,null,null,null,null,null,null,null,null,null,null,null,null,null,null,null,null,null,null,null,null,null,null,null,null,null,null,null,null,null,null,null,null,null,null,null,null,null,null,null,null,null,null,null,null,null,null,null,null,null,null,null,null,null,null,null,null,null,null,null,null,null,null,null,196,"66-0012",7500]
["86-0056","Regal Beloit of America, Inc.","Non-EGU",0,0,0,0,49.1,0,0,0,0,0,0,0,0,0,49.1,0,33.439998626708984,53.5,1641.904,5641.9040000000005,7500,null,"Allowables",49.1,null,null,null,null,null,null,null,null,null,null,null,null,null,null,null,null,null,null,null,null,null,null,null,null,null,null,null,null,null,null,null,null,null,null,null,null,null,null,null,null,null,null,null,null,null,null,null,null,null,null,null,null,null,null,null,null,null,null,null,null,null,null,null,null,null,null,null,null,null,null,null,null,197,"66-0113",7500]
["87-0028","O-N Minerals (Luttrell) Company","Non-EGU",137.30000000000001,0,746.8,0,2,0,452.6,0,0,0,0,0,0,0,1338.6999999999998,0,33.439998626708984,53.5,44766.12799999999,48766.12799999999,48766.12799999999,null,"Allowables",1338.6999999999998,null,null,null,null,null,null,null,null,null,null,null,null,null,null,null,null,null,null,null,null,null,null,null,null,null,null,null,null,null,null,null,null,null,null,null,null,null,null,null,null,null,null,null,null,null,null,null,null,null,null,null,null,null,null,null,null,null,null,null,null,null,null,null,null,null,null,null,null,null,null,null,null,198,"68-0001",7500]
["89-0001","The Burroughs-Ross-Colville Company, LLC dba BRC","Non-EGU",140.69999999999999,0,7.9,0,33.299999999999997,0,25.8,0,0,0,0,0,0,0,207.7,0,33.439998626708984,53.5,6945.4879999999994,10945.487999999999,10945.487999999999,null,"Allowables",207.7,null,null,null,null,null,null,null,null,null,null,null,null,null,null,null,null,null,null,null,null,null,null,null,null,null,null,null,null,null,null,null,null,null,null,null,null,null,null,null,null,null,null,null,null,null,null,null,null,null,null,null,null,null,null,null,null,null,null,null,null,null,null,null,null,null,null,null,null,null,null,null,null,199,"71-0035",7500]
["89-0077","Bridgestone Americas Tire Operations, Llc","Non-EGU",157.4,1.68,0,0.1,243.8,1.2,0,22.1,0,0,0,3.5,0,0,401.20000000000005,28.580000000000002,33.439998626708984,53.5,14945.158000000001,18945.158000000003,18945.158000000003,null,"Mixed",429.78000000000003,null,null,null,null,null,null,null,null,null,null,null,null,null,null,null,null,null,null,null,null,null,null,null,null,null,null,null,null,null,null,null,null,null,null,null,null,null,null,null,null,null,null,null,null,null,null,null,null,null,null,null,null,null,null,null,null,null,null,null,null,null,null,null,null,null,null,null,null,null,null,null,null,200,"72-0109",7500]
["90-0029","East Tennessee State University","Non-EGU",127.8,0,175.1,0,4.5999999999999996,0,46.7,0,0,0,0,0,0,0,354.2,0,33.439998626708984,53.5,11844.447999999999,15844.447999999999,15844.447999999999,null,"Allowables",354.2,null,null,null,null,null,null,null,null,null,null,null,null,null,null,null,null,null,null,null,null,null,null,null,null,null,null,null,null,null,null,null,null,null,null,null,null,null,null,null,null,null,null,null,null,null,null,null,null,null,null,null,null,null,null,null,null,null,null,null,null,null,null,null,null,null,null,null,null,null,null,null,null,201,"73-0112",7500]
["90-0039","Mountain Home Energy","Non-EGU",0,8.3000000000000007,0,0.3,0,37,0,55.5,0,0,0,0,0,0,0,101.1,33.439998626708984,53.5,5408.8499999999995,9408.8499999999985,9408.8499999999985,null,"Actuals",101.1,null,null,null,null,null,null,null,null,null,null,null,null,null,null,null,null,null,null,null,null,null,null,null,null,null,null,null,null,null,null,null,null,null,null,null,null,null,null,null,null,null,null,null,null,null,null,null,null,null,null,null,null,null,null,null,null,null,null,null,null,null,null,null,null,null,null,null,null,null,null,null,null,202,"73-0182",7500]
["90-0232","Cantech Industries Inc.","Non-EGU",5,0,0,0,147,0,0,0,0,0,0,0,0,0,152,0,33.439998626708984,53.5,5082.8799999999992,9082.8799999999992,9082.8799999999992,null,"Allowables",152,null,null,null,null,null,null,null,null,null,null,null,null,null,null,null,null,null,null,null,null,null,null,null,null,null,null,null,null,null,null,null,null,null,null,null,null,null,null,null,null,null,null,null,null,null,null,null,null,null,null,null,null,null,null,null,null,null,null,null,null,null,null,null,null,null,null,null,null,null,null,null,null,203,"74-0091",7500]
["90-0246","Iris Glen Environmental Center","Non-EGU",0,0,0,0,0,14.2,0,0,0,0,0,0,0,0,0,14.2,33.439998626708984,53.5,759.69999999999993,4759.7,7500,null,"Actuals",14.2,null,null,null,null,null,null,null,null,null,null,null,null,null,null,null,null,null,null,null,null,null,null,null,null,null,null,null,null,null,null,null,null,null,null,null,null,null,null,null,null,null,null,null,null,null,null,null,null,null,null,null,null,null,null,null,null,null,null,null,null,null,null,null,null,null,null,null,null,null,null,null,null,204,"75-0212",7500]
["90-0405","Robert Bosch, LLC","Non-EGU",71.099999999999994,0,0,0,99.5,0,0,0,0,0,0,0,0,0,170.6,0,33.439998626708984,53.5,5704.8639999999996,9704.8639999999996,9704.8639999999996,null,"Allowables",170.6,null,null,null,null,null,null,null,null,null,null,null,null,null,null,null,null,null,null,null,null,null,null,null,null,null,null,null,null,null,null,null,null,null,null,null,null,null,null,null,null,null,null,null,null,null,null,null,null,null,null,null,null,null,null,null,null,null,null,null,null,null,null,null,null,null,null,null,null,null,null,null,null,205,"80-0009",7500]
["91-0001","Tennessee Gas Pipeline Company, LLC - Station 555","Non-EGU",0,11.538,0,0.55000000000000004,0,64.087999999999994,0,359.30700000000002,0,2.1999999999999999E-2,0,0,0,0,0,435.505,33.439998626708984,53.5,23299.517499999998,27299.517499999998,27299.517499999998,null,"Actuals",435.505,null,null,null,null,null,null,null,null,null,null,null,null,null,null,null,null,null,null,null,null,null,null,null,null,null,null,null,null,null,null,null,null,null,null,null,null,null,null,null,null,null,null,null,null,null,null,null,null,null,null,null,null,null,null,null,null,null,null,null,null,null,null,null,null,null,null,null,null,null,null,null,null,206,"82-0007",7500]
["91-0075","The Praxis Companies, LLC dba American Whirlpool","Non-EGU",68,0,0,0,61.2,0,0,0,0,0,0,0,0,0,129.19999999999999,0,33.439998626708984,53.5,4320.4479999999994,8320.4480000000003,8320.4480000000003,null,"Allowables",129.19999999999999,null,null,null,null,null,null,null,null,null,null,null,null,null,null,null,null,null,null,null,null,null,null,null,null,null,null,null,null,null,null,null,null,null,null,null,null,null,null,null,null,null,null,null,null,null,null,null,null,null,null,null,null,null,null,null,null,null,null,null,null,null,null,null,null,null,null,null,null,null,null,null,null,207,"82-0110",7500]
["92-0009","Gleason Clay Company, LLC","Non-EGU",0,3.64,0,0.01,0,0.06,0,1.02,0,0,0,0,0,0,0,4.7300000000000004,33.439998626708984,53.5,253.05500000000004,4253.0550000000003,7500,null,"Actuals",4.7300000000000004,null,null,null,null,null,null,null,null,null,null,null,null,null,null,null,null,null,null,null,null,null,null,null,null,null,null,null,null,null,null,null,null,null,null,null,null,null,null,null,null,null,null,null,null,null,null,null,null,null,null,null,null,null,null,null,null,null,null,null,null,null,null,null,null,null,null,null,null,null,null,null,null,208,"82-0510",7500]
["92-0020","Kentucky-Tenn Clay Co.","Non-EGU",0,3.7,0,3.6999999999999998E-2,0,0.34,0,6.2,0,0,0,0,0,0,0,10.277000000000001,33.439998626708984,53.5,549.81950000000006,4549.8194999999996,7500,null,"Actuals",10.277000000000001,null,null,null,null,null,null,null,null,null,null,null,null,null,null,null,null,null,null,null,null,null,null,null,null,null,null,null,null,null,null,null,null,null,null,null,null,null,null,null,null,null,null,null,null,null,null,null,null,null,null,null,null,null,null,null,null,null,null,null,null,null,null,null,null,null,null,null,null,null,null,null,null,209,"84-0067",7500]
["92-0052","Boral Bricks, Inc. - Gleason Plant","Non-EGU",0,23.8,0,16.100000000000001,0,0.6,0,8.4,0,19.45,0,0,0,0,0,68.350000000000009,33.439998626708984,53.5,3656.7250000000004,7656.7250000000004,7656.7250000000004,null,"Actuals",68.350000000000009,null,null,null,null,null,null,null,null,null,null,null,null,null,null,null,null,null,null,null,null,null,null,null,null,null,null,null,null,null,null,null,null,null,null,null,null,null,null,null,null,null,null,null,null,null,null,null,null,null,null,null,null,null,null,null,null,null,null,null,null,null,null,null,null,null,null,null,null,null,null,null,null,210,"86-0056",7500]
["92-0108","Tennessee Valley Authority (TVA) - Gleason Combustion Turbine Plant (GCC)","EGU",0,2,0,0.2,0,0.7,0,28.1,0,0,0,0,0,0,0,31,46.819999694824219,74.910003662109375,2322.21,6322.21,7500,null,"Actuals",31,null,null,null,null,null,null,null,null,null,null,null,null,null,null,null,null,null,null,null,null,null,null,null,null,null,null,null,null,null,null,null,null,null,null,null,null,null,null,null,null,null,null,null,null,null,null,null,null,null,null,null,null,null,null,null,null,null,null,null,null,null,null,null,null,null,null,null,null,null,null,null,null,211,"90-0246",7500]
["93-0067","Norcom Of Tennessee, Inc.","Non-EGU",45.1,0,0,0,36,0,0,0,0,0,0,0,0,0,81.099999999999994,0,33.439998626708984,53.5,2711.9839999999995,6711.9839999999995,7500,null,"Allowables",81.099999999999994,null,null,null,null,null,null,null,null,null,null,null,null,null,null,null,null,null,null,null,null,null,null,null,null,null,null,null,null,null,null,null,null,null,null,null,null,null,null,null,null,null,null,null,null,null,null,null,null,null,null,null,null,null,null,null,null,null,null,null,null,null,null,null,null,null,null,null,null,null,null,null,null,212,"92-0009",7500]
["94-0072","Essex Group, Inc.","Non-EGU",0,33.5,0,1.2,0,53.7,0,65.3,0,0,0,0,0,0,0,153.69999999999999,33.439998626708984,53.5,8222.9499999999989,12222.949999999999,12222.949999999999,null,"Actuals",153.69999999999999,null,null,null,null,null,null,null,null,null,null,null,null,null,null,null,null,null,null,null,null,null,null,null,null,null,null,null,null,null,null,null,null,null,null,null,null,null,null,null,null,null,null,null,null,null,null,null,null,null,null,null,null,null,null,null,null,null,null,null,null,null,null,null,null,null,null,null,null,null,null,null,null,213,"92-0020",7500]
["94-0100","Fibertek, Inc.","Non-EGU",0,0,0,0,0,34.700000000000003,0,0,0,12.18,0,0,0,0,0,46.88,33.439998626708984,53.5,2508.08,6508.08,7500,null,"Actuals",46.88,null,null,null,null,null,null,null,null,null,null,null,null,null,null,null,null,null,null,null,null,null,null,null,null,null,null,null,null,null,null,null,null,null,null,null,null,null,null,null,null,null,null,null,null,null,null,null,null,null,null,null,null,null,null,null,null,null,null,null,null,null,null,null,null,null,null,null,null,null,null,null,null,214,"92-0108",7500]
["95-0093","Texas Eastern Gas Pipeline - Gladeville","Non-EGU",6,0,0,0,0,0,495,0,0,0,0,0,0,0,501,0,33.439998626708984,53.5,16753.439999999999,20753.439999999999,20753.439999999999,null,"Allowables",501,null,null,null,null,null,null,null,null,null,null,null,null,null,null,null,null,null,null,null,null,null,null,null,null,null,null,null,null,null,null,null,null,null,null,null,null,null,null,null,null,null,null,null,null,null,null,null,null,null,null,null,null,null,null,null,null,null,null,null,null,null,null,null,null,null,null,null,null,null,null,null,null,215,"94-0100",7500]
[null,null,null,null,null,null,null,null,null,null,null,null,null,null,null,null,null,"ALW","ACT","ACT%",null,null,null,{"$f":"ROUND(SUM(X2:X216),2)","v":5488897.6600000001}]
[null,null,null,null,null,null,null,null,null,null,null,null,null,null,null,null,"NEGU",{"$f":"SUMIFS(R2:R216,C2:C216,\"=Non-EGU\")","v":64865.72600000001},{"$f":"SUMIFS(S2:S216,C2:C216,\"=Non-EGU\")","v":23459.655999999999},{"$f":"ROUND(S218/SUM(R218:S218),2)","v":0.27}]
[null,null,null,null,null,null,null,null,null,null,null,null,null,null,null,null,"EGU",{"$f":"SUMIFS(R2:R216,C2:C216,\"=EGU\")","v":8835.2999999999993},{"$f":"SUMIFS(S2:S216,C2:C216,\"=EGU\")","v":9016.0499999999993},{"$f":"ROUND(S219/SUM(R219:S219),2)","v":0.51}]
[null,null,null,null,null,null,null,null,null,null,null,null,null,null,null,null,"EGU%",{"$f":"ROUND(R219/SUM(R218:R219),2)","v":0.12},{"$f":"ROUND(S219/SUM(S218:S219),2)","v":0.28000000000000003}]

{"sheet":"APConly","index":1,"n_rows":7,"n_cols":2,"rows_kept":7,"cut":false,"hidden":true,"merged":[]}
["Expenses",6300000]
["Initial Balance",1880000]
["Final Balance",1000000]
["lastrow",216]
["Minimum Fee",7500]
["Base Fee",4000]
["FY2018 Fees collected in FY2019",480000]

{"sheet":"SearchResults","index":2,"n_rows":1,"n_cols":9,"rows_kept":1,"cut":false,"hidden":true,"merged":[]}
[" baseFee"," minFee"," NEGU_ALW"," EGU_ALW"," NEGU_ACT"," EGU_ACT"," increment"," curRevenue","error"]

{"sheet":"Output","index":3,"n_rows":237,"n_cols":22,"rows_kept":237,"cut":false,"hidden":false,"merged":[]}
[]
[]
[]
[]
[]
[]
[]
[]
[]
[]
[]
[]
[]
[]
[]
[]
[]
[]
[]
[]
[]
[]
[]
[]
[]
[]
[]
[]
[]
[]
[]
[]
[]
[]
[]
[]
[]
[]
[]
[]
[]
[]
[]
[]
[]
[]
[]
[]
[]
[]
[]
[]
[]
[]
[]
[]
[]
[]
[]
[]
[]
[]
[]
[]
[]
[]
[]
[]
[]
[]
[]
[]
[]
[]
[]
[]
[]
[]
[]
[]
[]
[]
[]
[]
[]
[]
[]
[]
[]
[]
[]
[]
[]
[]
[]
[]
[]
[]
[]
[]
[]
[]
[]
[]
[]
[]
[]
[]
[]
[]
[]
[]
[]
[]
[]
[]
[]
[]
[]
[]
[]
[]
[]
[]
[]
[]
[]
[]
[]
[]
[]
[]
[]
[]
[]
[]
[]
[]
[]
[]
[]
[]
[]
[]
[]
[]
[]
[]
[]
[]
[]
[]
[]
[]
[]
[]
[]
[]
[]
[]
[]
[]
[]
[]
[]
[]
[]
[]
[]
[]
[]
[]
[]
[]
[]
[]
[]
[]
[]
[]
[]
[]
[]
[]
[]
[]
[]
[]
[]
[]
[]
[]
[]
[]
[]
[]
[]
[]
[]
[]
[]
[]
[]
[]
[]
[]
[]
[]
[]
[]
[]
[]
[]
[]
[]
[]
[]
[]
[]
[]
[]
[]
[]
["Maximum of Fees",{"$f":"MAX(B1:B215)","v":0},{"$f":"MAX(C1:C215)","v":0},0,0,0,0,0,0,0,0,0,0,0,0,0,0,0,0,0,0,0]
["delta-Max",null,{"$f":"C224-B224","v":0},0,0,0,0,0,0,0,0,0,0,0,0,0,0,0,0,0,0,0]
["Mean",{"$f":"AVERAGE(B1:B215)","v":{"$error":"#DIV/0!"}},{"$f":"AVERAGE(C1:C215)","v":{"$error":"#DIV/0!"}},{"$error":"#DIV/0!"},{"$error":"#DIV/0!"},{"$error":"#DIV/0!"},{"$error":"#DIV/0!"},{"$error":"#DIV/0!"},{"$error":"#DIV/0!"},{"$error":"#DIV/0!"},{"$error":"#DIV/0!"},{"$error":"#DIV/0!"},{"$error":"#DIV/0!"},{"$error":"#DIV/0!"},{"$error":"#DIV/0!"},{"$error":"#DIV/0!"},{"$error":"#DIV/0!"},{"$error":"#DIV/0!"},{"$error":"#DIV/0!"},{"$error":"#DIV/0!"},{"$error":"#DIV/0!"},{"$error":"#DIV/0!"}]
["delta-Mean",null,{"$f":"C226-B226","v":{"$error":"#DIV/0!"}},{"$error":"#DIV/0!"},{"$error":"#DIV/0!"},{"$error":"#DIV/0!"},{"$error":"#DIV/0!"},{"$error":"#DIV/0!"},{"$error":"#DIV/0!"},{"$error":"#DIV/0!"},{"$error":"#DIV/0!"},{"$error":"#DIV/0!"},{"$error":"#DIV/0!"},{"$error":"#DIV/0!"},{"$error":"#DIV/0!"},{"$error":"#DIV/0!"},{"$error":"#DIV/0!"},{"$error":"#DIV/0!"},{"$error":"#DIV/0!"},{"$error":"#DIV/0!"},{"$error":"#DIV/0!"},{"$error":"#DIV/0!"}]
["Median",{"$f":"MEDIAN(B1:B215)","v":{"$error":"#NUM!"}},{"$f":"MEDIAN(C1:C215)","v":{"$error":"#NUM!"}},{"$error":"#NUM!"},{"$error":"#NUM!"},{"$error":"#NUM!"},{"$error":"#NUM!"},{"$error":"#NUM!"},{"$error":"#NUM!"},{"$error":"#NUM!"},{"$error":"#NUM!"},{"$error":"#NUM!"},{"$error":"#NUM!"},{"$error":"#NUM!"},{"$error":"#NUM!"},{"$error":"#NUM!"},{"$error":"#NUM!"},{"$error":"#NUM!"},{"$error":"#NUM!"},{"$error":"#NUM!"},{"$error":"#NUM!"},{"$error":"#NUM!"}]
["delta-Median",null,{"$f":"C228-B228","v":{"$error":"#NUM!"}},{"$error":"#NUM!"},{"$error":"#NUM!"},{"$error":"#NUM!"},{"$error":"#NUM!"},{"$error":"#NUM!"},{"$error":"#NUM!"},{"$error":"#NUM!"},{"$error":"#NUM!"},{"$error":"#NUM!"},{"$error":"#NUM!"},{"$error":"#NUM!"},{"$error":"#NUM!"},{"$error":"#NUM!"},{"$error":"#NUM!"},{"$error":"#NUM!"},{"$error":"#NUM!"},{"$error":"#NUM!"},{"$error":"#NUM!"},{"$error":"#NUM!"}]
["Mode",{"$f":"MODE(B1:B215)","v":{"$error":"#N/A"}},{"$f":"MODE(C1:C215)","v":{"$error":"#N/A"}},{"$error":"#N/A"},{"$error":"#N/A"},{"$error":"#N/A"},{"$error":"#N/A"},{"$error":"#N/A"},{"$error":"#N/A"},{"$error":"#N/A"},{"$error":"#N/A"},{"$error":"#N/A"},{"$error":"#N/A"},{"$error":"#N/A"},{"$error":"#N/A"},{"$error":"#N/A"},{"$error":"#N/A"},{"$error":"#N/A"},{"$error":"#N/A"},{"$error":"#N/A"},{"$error":"#N/A"},{"$error":"#N/A"}]
["Minimum",{"$f":"MIN(B1:B215)","v":0},{"$f":"MIN(C1:C215)","v":0},0,0,0,0,0,0,0,0,0,0,0,0,0,0,0,0,0,0,0]
["# @ Minimum",{"$f":"COUNTIF(B1:B215,\"<=\"&B231)","v":0},{"$f":"COUNTIF(C1:C215,\"<=\"&C231)","v":0},0,0,0,0,0,0,0,0,0,0,0,0,0,0,0,0,0,0,0]
["% of Total",{"$f":"B232/215","v":0},{"$f":"C232/215","v":0},0,0,0,0,0,0,0,0,0,0,0,0,0,0,0,0,0,0,0]
["# > Mean",{"$f":"COUNTIF(B1:B215,\">\"&B226)","v":0},{"$f":"COUNTIF(C1:C215,\">\"&C226)","v":0},0,0,0,0,0,0,0,0,0,0,0,0,0,0,0,0,0,0,0]
["% of Total",{"$f":"B234/215","v":0},{"$f":"C234/215","v":0},0,0,0,0,0,0,0,0,0,0,0,0,0,0,0,0,0,0,0]
["# in between",{"$f":"COUNT(B1:B215)-B232-B234","v":0},{"$f":"COUNT(C1:C215)-C232-C234","v":0},0,0,0,0,0,0,0,0,0,0,0,0,0,0,0,0,0,0,0]
["% of Total",{"$f":"B236/COUNT(B1:B215)","v":{"$error":"#DIV/0!"}},{"$f":"C236/COUNT(C1:C215)","v":{"$error":"#DIV/0!"}},{"$error":"#DIV/0!"},{"$error":"#DIV/0!"},{"$error":"#DIV/0!"},{"$error":"#DIV/0!"},{"$error":"#DIV/0!"},{"$error":"#DIV/0!"},{"$error":"#DIV/0!"},{"$error":"#DIV/0!"},{"$error":"#DIV/0!"},{"$error":"#DIV/0!"},{"$error":"#DIV/0!"},{"$error":"#DIV/0!"},{"$error":"#DIV/0!"},{"$error":"#DIV/0!"},{"$error":"#DIV/0!"},{"$error":"#DIV/0!"},{"$error":"#DIV/0!"},{"$error":"#DIV/0!"},{"$error":"#DIV/0!"}]